Workbook

Sheet Interface
B2: HExTemp light
B3: berechnet den Temperaturverlauf und die übertragene Wärmeleistung in Wärmeübertragern
B5: Eingabe | H5: Ausgabe
B7: Strömungsgeometrie | H7: Austrittstemperatur ϑ1,aus | J7: =IF('Verwaltung (ausblenden)'!D21=0,"!!!",Berechnung!E34) -> 52.9 | K7: [°C]
B8: Strömungsrichtung | H8: Austrittstemperatur ϑ2,aus | J8: =IF('Verwaltung (ausblenden)'!D21=0,"!!!",Berechnung!E35) -> 36.2 | K8: [°C]
B10: Wärmeübertragergeometrie | J10: =IF('Verwaltung (ausblenden)'!D21=0,"!!!",Berechnung!E37) -> 13548 | K10: [W]
B11: Wärmedurchgangskoeffizient k | D11: 40.0 | E11: [W/(m² K)]
B12: Wärmeübertragungsfläche A | D12: 10.0 | E12: [m²]
B14: Wärmeres Fluid
B15: Massenstrom ṁ1 | D15: 0.50 | E15: [kg/s]
B16: Wärmekapazität cp1 | D16: 1000 | E16: [J/(kg K)]
B17: Eintrittstemperatur ϑ1,ein | D17: 80.0 | E17: [°C]
B19: Kälteres Fluid
B20: Massenstrom ṁ2 | D20: 0.20 | E20: [kg/s]
B21: Wärmekapazität cp2 | D21: 4185 | E21: [J/(kg K)]
B22: Eintrittstemperatur ϑ2,ein | D22: 20.0 | E22: [°C]
B24: =IF('Verwaltung (ausblenden)'!D21=0,'Verwaltung (ausblenden)'!E21,"") -> 
B27: Wenger Engineering GmbH - Einsteinstraße 55 - D-89077 Ulm - Tel. +49 731 / 159 37 -500 - mail@wenger-engineering.de
B28: www.wenger-engineering.de

Sheet Anleitung
B2: HExTemp light
B4: Anleitung
B6: HExTemp light berechnet die Temperaturverläufe zweier Fluide innerhalb eines Wärmeübertragers sowie den übertragenen Wärmestrom.
B8: Es können Rekuperatoren sowohl in Form von Gleichstromwärmeübertragern als auch Gegenstromwärmeübertragern berechnet werden.
B10: Eingegeben werden müssen der Wärmedurchgangskoeffizient k, die Wärmeübertragungsfläche A, sowie die Wärmekapazitäten cp1 und cp2, die Massenströme ṁ1 und ṁ2 und die Eintrittstemperaturen ϑ1,ein und ϑ2,ein der beiden Fluide.
B12: Mit Index 1 wird das Fluid bezeichnet, das beim Eintritt in den Wärmeübertrager die höhere Temperatur hat. Das Fluid mit Index 2 hat beim Eintritt in den Wärmeübertrager die niedrigere Temperatur.
B14: Ausgegeben werden die Austrittstemperaturen ϑ1,aus und ϑ2,aus und die Temperaturverläufe beider Fluide innerhalb des Wärmeübertragers, sowie der vom wärmeren an das kältere Fluid übertragene Wärmestrom .
B16: Der Temperaturverlauf ist im Diagramm über die Länge des Wärmeübertragers aufgetragen. Dabei wird die Länge prozentual angegeben.
B18: Position x = 0 % entspricht dem Eintrittspunkt und Position x = 100 % dem Austrittspunkt des wärmeren Fluids.
B20: Die Positionen von Ein- und Austrittspunkt des kälteren Fluids variieren je nach Auswahl der Strömungsrichtung:
B22: Bei einem Gleichstromwärmeübertrager liegt der Eintrittspunkt des kälteren Fluids bei Position x = 0 % und der Austrittspunkt bei Position x = 100 %.
B24: Bei einem Gegenstromwärmeübertrager liegt der Eintrittspunkt des kälteren Fluids bei Position x = 100 % und der Austrittspunkt bei Position x = 0 %.

Sheet Wissen
B2: HExTemp light
B4: Wissen
B6: Ein Wärmeübertrager (auch Wärmetauscher genannt) ist ein Apparat, der thermische Energie von einem Stoffstrom auf einen anderen überträgt. [Definition nach Wikipedia]
B8: Notwendig für die Wärmeübertragung ist ein Temperaturunterschied zwischen den beiden Medien. Die Wärme wird immer vom wärmeren an das kältere Medium übertragen.
B10: Als Medien kommen vor allem Fluide (Flüssigkeiten und Gase) zur Anwendung. In wenigen Spezialfällen werden auch Festkörper verwendet.
B12: Es wird unterschieden zwischen Gleichstromwärmeübertragern, Gegenstromwärmeübertragern und Kreuzstromwärmeübertragern sowie Mischformen dieser drei Bauarten.
B14: Die Temperatur innerhalb eines Wärmeübertragers ändert sich über dessen Länge. Der Temperaturverlauf ist bei Gleich-, Gegen- und Kreuzstromwärmeübertragern verschieden.
B16: Bei Gleichstromwärmeübertragern nähern sich die Temperaturen der beiden Fluide einer gemeinsamen Grenztemperatur an. Diese Grenztemperatur liegt zwischen den Eintrittstemperaturen der beiden Fluide.
B17: Sie hängt von den Massenströmen, Wärmekapazitäten und Eintrittstemperaturen der beiden Fluide ab. Die Austrittstemperatur des kälteren Mediums kann die des wärmeren Mediums nicht überschreiten.
B19: Bei Gegenstromwärmeübertragern existiert keine gemeinsame Grenztemperatur für die Austrittstemperaturen der beiden Fluide. Die Austrittstemperatur des kälteren Fluids kann die Austrittstemperatur des wärmeren Fluids überschreiten.
B21: Die Grenztemperatur des wärmeren Fluids entspricht der Eintrittstemperatur des kälteren Fluides. Das kältere Fluid kann als Grenztemperatur maximal die Eintrittstemperatur des wärmeren Fluids erreichen.
B23: Die Leistung eines Wärmeübertragers ist im Gegenstrombetrieb höher als im Gleichstrombetrieb.
B25: Weitere interessante Literatur zu diesem Thema finden Sie auf
B26: http://www.thermodynamik-buchtipps.de
B28: Formelsammlung
B30: Diese Formelsammlung ist enthalten in HExTemp light open.
B31: http://www.waermetauscher-berechnen.de/hextemp-light-open
B33: Wärmekapazitätsstrom:
B37: Übertragungseinheiten (Number of Transfer Units):
B41: Verhältnis der Wärmekapazitätsströme:
B45: Wärmeübertrager-Wirkungsgrad bei Gleichstrom:
B49: Wärmeübertrager-Wirkungsgrad bei Gegenstrom:
B53: Ortsabhängige Temperatur:
B57: Übertragener Wärmestrom:
B61: Mittlere Logarithmische Temperaturdifferenz bei Gleichstrom:
B65: Mittlere Logarithmische Temperaturdifferenz bei Gegenstrom:
B71: mit: | C71: A: Oberfläche [m2]
C72: NTU: Number of Transfer Units [-]
C74: Ẇ: Wärmekapazitätsstrom [J/(K s)]
C75: cp: Wärmekapazität [J/(kg K)]
C76: k: Wärmedurchgangskoeffizient [W/(m² K)]
C77: ṁ: Massenstrom [kg/s]
C78: x: Position im Wärmeübertrager (prozentual) [%]
C79: ε: (lokaler) Wärmeübertrager-Wirkungsgrad [-]
C80: ϑ: Temperatur [°C]
C81: ΔTm: mittlere logarithmischeTemperaturdifferenz [K]

Sheet Berechnung
B2: HExTemp light
B4: Berechnungen
B6: Diese Berechnungen können Sie in HExTemp light open einsehen.
B7: http://www.waermetauscher-berechnen.de/hextemp-light-open
B9: Hilfsgrößen
B11: Wärmekapazitätsstrom warmes Fluid | C11: Ẇ1 | D11: [J/(K s)] | E11: =Interface!D15*Interface!D16 -> 500.0
B12: Wärmekapazitätsstrom kaltes Fluid | C12: Ẇ2 | D12: [J/(K s)] | E12: =IF('Verwaltung (ausblenden)'!D11=TRUE,Interface!D20*Interface!D21+0.0000001,Interface!D20*Interface!D21) -> 837.0
B14: Übertragungseinheiten warmes Fluid | C14: NTU1 | D14: [-] | E14: =Interface!D11*Interface!D12/Berechnung!E11 -> 0.8
B15: Übertragungseinheiten kaltes Fluid | C15: NTU2 | D15: [-] | E15: =Interface!D11*Interface!D12/Berechnung!E12 -> 0.5
B17: Verhältnis der Wärmekapazitätsströme | C17: Ẇ1/Ẇ2 | D17: [-] | E17: =E11/E12 -> 0.6
B18: Verhältnis der Wärmekapazitätsströme | C18: Ẇ2/Ẇ1 | D18: [-] | E18: =E12/E11 -> 1.7
B21: Lokale Größen
B23: Position x im Wärmeübertrager | C23: x | D23: [%] | E23: 0.0 | F23: 1.0 | G23: 2.0 | H23: 3.0 | I23: 4.0 | J23: 5.0 | K23: 6.0 | L23: 7.0 | M23: 8.0 | N23: 9.0 | O23: 10.0 | P23: 11.0 | Q23: 12.0 | R23: 13.0 | S23: 14.0 | T23: 15.0 | U23: 16.0 | V23: 17.0 | W23: 18.0 | X23: 19.0 | Y23: 20.0 | Z23: 21.0 | AA23: 22.0 | AB23: 23.0 | AC23: 24.0 | AD23: 25.0 | AE23: 26.0 | AF23: 27.0 | AG23: 28.0 | AH23: 29.0 | AI23: 30.0 | AJ23: 31.0 | AK23: 32.0 | AL23: 33.0 | AM23: 34.0 | AN23: 35.0 | AO23: 36.0 | AP23: 37.0 | AQ23: 38.0 | AR23: 39.0 | AS23: 40.0 | AT23: 41.0 | AU23: 42.0 | AV23: 43.0 | AW23: 44.0 | AX23: 45.0 | AY23: 46.0 | AZ23: 47.0 | BA23: 48.0 | BB23: 49.0 | BC23: 50.0 | BD23: 51.0 | BE23: 52.0 | BF23: 53.0 | BG23: 54.0 | BH23: 55.0 | BI23: 56.0 | BJ23: 57.0 | BK23: 58.0 | BL23: 59.0 | BM23: 60.0 | BN23: 61.0 | BO23: 62.0 | BP23: 63.0 | BQ23: 64.0 | BR23: 65.0 | BS23: 66.0 | BT23: 67.0 | BU23: 68.0 | BV23: 69.0 | BW23: 70.0 | BX23: 71.0 | BY23: 72.0 | BZ23: 73.0 | CA23: 74.0 | CB23: 75.0 | CC23: 76.0 | CD23: 77.0 | CE23: 78.0 | CF23: 79.0 | CG23: 80.0 | CH23: 81.0 | CI23: 82.0 | CJ23: 83.0 | CK23: 84.0 | CL23: 85.0 | CM23: 86.0 | CN23: 87.0 | CO23: 88.0 | CP23: 89.0 | CQ23: 90.0 | CR23: 91.0 | CS23: 92.0 | CT23: 93.0 | CU23: 94.0 | CV23: 95.0 | CW23: 96.0 | CX23: 97.0 | CY23: 98.0 | CZ23: 99.0 | DA23: 100.0
B25: Wärmeübertrager-Wirkungsgrad warmes Fluid | C25: ε1(x) | D25: [-] | E25: =IF('Verwaltung (ausblenden)'!$D$10=TRUE,(1-EXP(-$E$14*E23/100*(1+$E$17)))/(1+$E$17),IF('Verwaltung (ausblenden)'!$D$11=TRUE,(1-EXP(-$E$14*E23/100*(1-$E$17)))/(1-$E$17*EXP(-$E$14*(1-$E$17))),0)) -> 0.0 | F25: =IF('Verwaltung (ausblenden)'!$D$10=TRUE,(1-EXP(-$E$14*F23/100*(1+$E$17)))/(1+$E$17),IF('Verwaltung (ausblenden)'!$D$11=TRUE,(1-EXP(-$E$14*F23/100*(1-$E$17)))/(1-$E$17*EXP(-$E$14*(1-$E$17))),0)) -> 0.0 | G25: =IF('Verwaltung (ausblenden)'!$D$10=TRUE,(1-EXP(-$E$14*G23/100*(1+$E$17)))/(1+$E$17),IF('Verwaltung (ausblenden)'!$D$11=TRUE,(1-EXP(-$E$14*G23/100*(1-$E$17)))/(1-$E$17*EXP(-$E$14*(1-$E$17))),0)) -> 0.0 | H25: =IF('Verwaltung (ausblenden)'!$D$10=TRUE,(1-EXP(-$E$14*H23/100*(1+$E$17)))/(1+$E$17),IF('Verwaltung (ausblenden)'!$D$11=TRUE,(1-EXP(-$E$14*H23/100*(1-$E$17)))/(1-$E$17*EXP(-$E$14*(1-$E$17))),0)) -> 0.0 | I25: =IF('Verwaltung (ausblenden)'!$D$10=TRUE,(1-EXP(-$E$14*I23/100*(1+$E$17)))/(1+$E$17),IF('Verwaltung (ausblenden)'!$D$11=TRUE,(1-EXP(-$E$14*I23/100*(1-$E$17)))/(1-$E$17*EXP(-$E$14*(1-$E$17))),0)) -> 0.0 | J25: =IF('Verwaltung (ausblenden)'!$D$10=TRUE,(1-EXP(-$E$14*J23/100*(1+$E$17)))/(1+$E$17),IF('Verwaltung (ausblenden)'!$D$11=TRUE,(1-EXP(-$E$14*J23/100*(1-$E$17)))/(1-$E$17*EXP(-$E$14*(1-$E$17))),0)) -> 0.0 | K25: =IF('Verwaltung (ausblenden)'!$D$10=TRUE,(1-EXP(-$E$14*K23/100*(1+$E$17)))/(1+$E$17),IF('Verwaltung (ausblenden)'!$D$11=TRUE,(1-EXP(-$E$14*K23/100*(1-$E$17)))/(1-$E$17*EXP(-$E$14*(1-$E$17))),0)) -> 0.0 | L25: =IF('Verwaltung (ausblenden)'!$D$10=TRUE,(1-EXP(-$E$14*L23/100*(1+$E$17)))/(1+$E$17),IF('Verwaltung (ausblenden)'!$D$11=TRUE,(1-EXP(-$E$14*L23/100*(1-$E$17)))/(1-$E$17*EXP(-$E$14*(1-$E$17))),0)) -> 0.1 | M25: =IF('Verwaltung (ausblenden)'!$D$10=TRUE,(1-EXP(-$E$14*M23/100*(1+$E$17)))/(1+$E$17),IF('Verwaltung (ausblenden)'!$D$11=TRUE,(1-EXP(-$E$14*M23/100*(1-$E$17)))/(1-$E$17*EXP(-$E$14*(1-$E$17))),0)) -> 0.1 | N25: =IF('Verwaltung (ausblenden)'!$D$10=TRUE,(1-EXP(-$E$14*N23/100*(1+$E$17)))/(1+$E$17),IF('Verwaltung (ausblenden)'!$D$11=TRUE,(1-EXP(-$E$14*N23/100*(1-$E$17)))/(1-$E$17*EXP(-$E$14*(1-$E$17))),0)) -> 0.1 | O25: =IF('Verwaltung (ausblenden)'!$D$10=TRUE,(1-EXP(-$E$14*O23/100*(1+$E$17)))/(1+$E$17),IF('Verwaltung (ausblenden)'!$D$11=TRUE,(1-EXP(-$E$14*O23/100*(1-$E$17)))/(1-$E$17*EXP(-$E$14*(1-$E$17))),0)) -> 0.1 | P25: =IF('Verwaltung (ausblenden)'!$D$10=TRUE,(1-EXP(-$E$14*P23/100*(1+$E$17)))/(1+$E$17),IF('Verwaltung (ausblenden)'!$D$11=TRUE,(1-EXP(-$E$14*P23/100*(1-$E$17)))/(1-$E$17*EXP(-$E$14*(1-$E$17))),0)) -> 0.1 | Q25: =IF('Verwaltung (ausblenden)'!$D$10=TRUE,(1-EXP(-$E$14*Q23/100*(1+$E$17)))/(1+$E$17),IF('Verwaltung (ausblenden)'!$D$11=TRUE,(1-EXP(-$E$14*Q23/100*(1-$E$17)))/(1-$E$17*EXP(-$E$14*(1-$E$17))),0)) -> 0.1 | R25: =IF('Verwaltung (ausblenden)'!$D$10=TRUE,(1-EXP(-$E$14*R23/100*(1+$E$17)))/(1+$E$17),IF('Verwaltung (ausblenden)'!$D$11=TRUE,(1-EXP(-$E$14*R23/100*(1-$E$17)))/(1-$E$17*EXP(-$E$14*(1-$E$17))),0)) -> 0.1 | S25: =IF('Verwaltung (ausblenden)'!$D$10=TRUE,(1-EXP(-$E$14*S23/100*(1+$E$17)))/(1+$E$17),IF('Verwaltung (ausblenden)'!$D$11=TRUE,(1-EXP(-$E$14*S23/100*(1-$E$17)))/(1-$E$17*EXP(-$E$14*(1-$E$17))),0)) -> 0.1 | T25: =IF('Verwaltung (ausblenden)'!$D$10=TRUE,(1-EXP(-$E$14*T23/100*(1+$E$17)))/(1+$E$17),IF('Verwaltung (ausblenden)'!$D$11=TRUE,(1-EXP(-$E$14*T23/100*(1-$E$17)))/(1-$E$17*EXP(-$E$14*(1-$E$17))),0)) -> 0.1 | U25: =IF('Verwaltung (ausblenden)'!$D$10=TRUE,(1-EXP(-$E$14*U23/100*(1+$E$17)))/(1+$E$17),IF('Verwaltung (ausblenden)'!$D$11=TRUE,(1-EXP(-$E$14*U23/100*(1-$E$17)))/(1-$E$17*EXP(-$E$14*(1-$E$17))),0)) -> 0.1 | V25: =IF('Verwaltung (ausblenden)'!$D$10=TRUE,(1-EXP(-$E$14*V23/100*(1+$E$17)))/(1+$E$17),IF('Verwaltung (ausblenden)'!$D$11=TRUE,(1-EXP(-$E$14*V23/100*(1-$E$17)))/(1-$E$17*EXP(-$E$14*(1-$E$17))),0)) -> 0.1 | W25: =IF('Verwaltung (ausblenden)'!$D$10=TRUE,(1-EXP(-$E$14*W23/100*(1+$E$17)))/(1+$E$17),IF('Verwaltung (ausblenden)'!$D$11=TRUE,(1-EXP(-$E$14*W23/100*(1-$E$17)))/(1-$E$17*EXP(-$E$14*(1-$E$17))),0)) -> 0.1 | X25: =IF('Verwaltung (ausblenden)'!$D$10=TRUE,(1-EXP(-$E$14*X23/100*(1+$E$17)))/(1+$E$17),IF('Verwaltung (ausblenden)'!$D$11=TRUE,(1-EXP(-$E$14*X23/100*(1-$E$17)))/(1-$E$17*EXP(-$E$14*(1-$E$17))),0)) -> 0.1 | Y25: =IF('Verwaltung (ausblenden)'!$D$10=TRUE,(1-EXP(-$E$14*Y23/100*(1+$E$17)))/(1+$E$17),IF('Verwaltung (ausblenden)'!$D$11=TRUE,(1-EXP(-$E$14*Y23/100*(1-$E$17)))/(1-$E$17*EXP(-$E$14*(1-$E$17))),0)) -> 0.1 | Z25: =IF('Verwaltung (ausblenden)'!$D$10=TRUE,(1-EXP(-$E$14*Z23/100*(1+$E$17)))/(1+$E$17),IF('Verwaltung (ausblenden)'!$D$11=TRUE,(1-EXP(-$E$14*Z23/100*(1-$E$17)))/(1-$E$17*EXP(-$E$14*(1-$E$17))),0)) -> 0.1 | AA25: =IF('Verwaltung (ausblenden)'!$D$10=TRUE,(1-EXP(-$E$14*AA23/100*(1+$E$17)))/(1+$E$17),IF('Verwaltung (ausblenden)'!$D$11=TRUE,(1-EXP(-$E$14*AA23/100*(1-$E$17)))/(1-$E$17*EXP(-$E$14*(1-$E$17))),0)) -> 0.2 | AB25: =IF('Verwaltung (ausblenden)'!$D$10=TRUE,(1-EXP(-$E$14*AB23/100*(1+$E$17)))/(1+$E$17),IF('Verwaltung (ausblenden)'!$D$11=TRUE,(1-EXP(-$E$14*AB23/100*(1-$E$17)))/(1-$E$17*EXP(-$E$14*(1-$E$17))),0)) -> 0.2 | AC25: =IF('Verwaltung (ausblenden)'!$D$10=TRUE,(1-EXP(-$E$14*AC23/100*(1+$E$17)))/(1+$E$17),IF('Verwaltung (ausblenden)'!$D$11=TRUE,(1-EXP(-$E$14*AC23/100*(1-$E$17)))/(1-$E$17*EXP(-$E$14*(1-$E$17))),0)) -> 0.2 | AD25: =IF('Verwaltung (ausblenden)'!$D$10=TRUE,(1-EXP(-$E$14*AD23/100*(1+$E$17)))/(1+$E$17),IF('Verwaltung (ausblenden)'!$D$11=TRUE,(1-EXP(-$E$14*AD23/100*(1-$E$17)))/(1-$E$17*EXP(-$E$14*(1-$E$17))),0)) -> 0.2 | AE25: =IF('Verwaltung (ausblenden)'!$D$10=TRUE,(1-EXP(-$E$14*AE23/100*(1+$E$17)))/(1+$E$17),IF('Verwaltung (ausblenden)'!$D$11=TRUE,(1-EXP(-$E$14*AE23/100*(1-$E$17)))/(1-$E$17*EXP(-$E$14*(1-$E$17))),0)) -> 0.2 | AF25: =IF('Verwaltung (ausblenden)'!$D$10=TRUE,(1-EXP(-$E$14*AF23/100*(1+$E$17)))/(1+$E$17),IF('Verwaltung (ausblenden)'!$D$11=TRUE,(1-EXP(-$E$14*AF23/100*(1-$E$17)))/(1-$E$17*EXP(-$E$14*(1-$E$17))),0)) -> 0.2 | AG25: =IF('Verwaltung (ausblenden)'!$D$10=TRUE,(1-EXP(-$E$14*AG23/100*(1+$E$17)))/(1+$E$17),IF('Verwaltung (ausblenden)'!$D$11=TRUE,(1-EXP(-$E$14*AG23/100*(1-$E$17)))/(1-$E$17*EXP(-$E$14*(1-$E$17))),0)) -> 0.2 | AH25: =IF('Verwaltung (ausblenden)'!$D$10=TRUE,(1-EXP(-$E$14*AH23/100*(1+$E$17)))/(1+$E$17),IF('Verwaltung (ausblenden)'!$D$11=TRUE,(1-EXP(-$E$14*AH23/100*(1-$E$17)))/(1-$E$17*EXP(-$E$14*(1-$E$17))),0)) -> 0.2 | AI25: =IF('Verwaltung (ausblenden)'!$D$10=TRUE,(1-EXP(-$E$14*AI23/100*(1+$E$17)))/(1+$E$17),IF('Verwaltung (ausblenden)'!$D$11=TRUE,(1-EXP(-$E$14*AI23/100*(1-$E$17)))/(1-$E$17*EXP(-$E$14*(1-$E$17))),0)) -> 0.2 | AJ25: =IF('Verwaltung (ausblenden)'!$D$10=TRUE,(1-EXP(-$E$14*AJ23/100*(1+$E$17)))/(1+$E$17),IF('Verwaltung (ausblenden)'!$D$11=TRUE,(1-EXP(-$E$14*AJ23/100*(1-$E$17)))/(1-$E$17*EXP(-$E$14*(1-$E$17))),0)) -> 0.2 | AK25: =IF('Verwaltung (ausblenden)'!$D$10=TRUE,(1-EXP(-$E$14*AK23/100*(1+$E$17)))/(1+$E$17),IF('Verwaltung (ausblenden)'!$D$11=TRUE,(1-EXP(-$E$14*AK23/100*(1-$E$17)))/(1-$E$17*EXP(-$E$14*(1-$E$17))),0)) -> 0.2 | AL25: =IF('Verwaltung (ausblenden)'!$D$10=TRUE,(1-EXP(-$E$14*AL23/100*(1+$E$17)))/(1+$E$17),IF('Verwaltung (ausblenden)'!$D$11=TRUE,(1-EXP(-$E$14*AL23/100*(1-$E$17)))/(1-$E$17*EXP(-$E$14*(1-$E$17))),0)) -> 0.2 | AM25: =IF('Verwaltung (ausblenden)'!$D$10=TRUE,(1-EXP(-$E$14*AM23/100*(1+$E$17)))/(1+$E$17),IF('Verwaltung (ausblenden)'!$D$11=TRUE,(1-EXP(-$E$14*AM23/100*(1-$E$17)))/(1-$E$17*EXP(-$E$14*(1-$E$17))),0)) -> 0.2 | AN25: =IF('Verwaltung (ausblenden)'!$D$10=TRUE,(1-EXP(-$E$14*AN23/100*(1+$E$17)))/(1+$E$17),IF('Verwaltung (ausblenden)'!$D$11=TRUE,(1-EXP(-$E$14*AN23/100*(1-$E$17)))/(1-$E$17*EXP(-$E$14*(1-$E$17))),0)) -> 0.2 | AO25: =IF('Verwaltung (ausblenden)'!$D$10=TRUE,(1-EXP(-$E$14*AO23/100*(1+$E$17)))/(1+$E$17),IF('Verwaltung (ausblenden)'!$D$11=TRUE,(1-EXP(-$E$14*AO23/100*(1-$E$17)))/(1-$E$17*EXP(-$E$14*(1-$E$17))),0)) -> 0.2 | AP25: =IF('Verwaltung (ausblenden)'!$D$10=TRUE,(1-EXP(-$E$14*AP23/100*(1+$E$17)))/(1+$E$17),IF('Verwaltung (ausblenden)'!$D$11=TRUE,(1-EXP(-$E$14*AP23/100*(1-$E$17)))/(1-$E$17*EXP(-$E$14*(1-$E$17))),0)) -> 0.2 | AQ25: =IF('Verwaltung (ausblenden)'!$D$10=TRUE,(1-EXP(-$E$14*AQ23/100*(1+$E$17)))/(1+$E$17),IF('Verwaltung (ausblenden)'!$D$11=TRUE,(1-EXP(-$E$14*AQ23/100*(1-$E$17)))/(1-$E$17*EXP(-$E$14*(1-$E$17))),0)) -> 0.2 | AR25: =IF('Verwaltung (ausblenden)'!$D$10=TRUE,(1-EXP(-$E$14*AR23/100*(1+$E$17)))/(1+$E$17),IF('Verwaltung (ausblenden)'!$D$11=TRUE,(1-EXP(-$E$14*AR23/100*(1-$E$17)))/(1-$E$17*EXP(-$E$14*(1-$E$17))),0)) -> 0.2 | AS25: =IF('Verwaltung (ausblenden)'!$D$10=TRUE,(1-EXP(-$E$14*AS23/100*(1+$E$17)))/(1+$E$17),IF('Verwaltung (ausblenden)'!$D$11=TRUE,(1-EXP(-$E$14*AS23/100*(1-$E$17)))/(1-$E$17*EXP(-$E$14*(1-$E$17))),0)) -> 0.3 | AT25: =IF('Verwaltung (ausblenden)'!$D$10=TRUE,(1-EXP(-$E$14*AT23/100*(1+$E$17)))/(1+$E$17),IF('Verwaltung (ausblenden)'!$D$11=TRUE,(1-EXP(-$E$14*AT23/100*(1-$E$17)))/(1-$E$17*EXP(-$E$14*(1-$E$17))),0)) -> 0.3 | AU25: =IF('Verwaltung (ausblenden)'!$D$10=TRUE,(1-EXP(-$E$14*AU23/100*(1+$E$17)))/(1+$E$17),IF('Verwaltung (ausblenden)'!$D$11=TRUE,(1-EXP(-$E$14*AU23/100*(1-$E$17)))/(1-$E$17*EXP(-$E$14*(1-$E$17))),0)) -> 0.3 | AV25: =IF('Verwaltung (ausblenden)'!$D$10=TRUE,(1-EXP(-$E$14*AV23/100*(1+$E$17)))/(1+$E$17),IF('Verwaltung (ausblenden)'!$D$11=TRUE,(1-EXP(-$E$14*AV23/100*(1-$E$17)))/(1-$E$17*EXP(-$E$14*(1-$E$17))),0)) -> 0.3 | AW25: =IF('Verwaltung (ausblenden)'!$D$10=TRUE,(1-EXP(-$E$14*AW23/100*(1+$E$17)))/(1+$E$17),IF('Verwaltung (ausblenden)'!$D$11=TRUE,(1-EXP(-$E$14*AW23/100*(1-$E$17)))/(1-$E$17*EXP(-$E$14*(1-$E$17))),0)) -> 0.3 | AX25: =IF('Verwaltung (ausblenden)'!$D$10=TRUE,(1-EXP(-$E$14*AX23/100*(1+$E$17)))/(1+$E$17),IF('Verwaltung (ausblenden)'!$D$11=TRUE,(1-EXP(-$E$14*AX23/100*(1-$E$17)))/(1-$E$17*EXP(-$E$14*(1-$E$17))),0)) -> 0.3 | AY25: =IF('Verwaltung (ausblenden)'!$D$10=TRUE,(1-EXP(-$E$14*AY23/100*(1+$E$17)))/(1+$E$17),IF('Verwaltung (ausblenden)'!$D$11=TRUE,(1-EXP(-$E$14*AY23/100*(1-$E$17)))/(1-$E$17*EXP(-$E$14*(1-$E$17))),0)) -> 0.3 | AZ25: =IF('Verwaltung (ausblenden)'!$D$10=TRUE,(1-EXP(-$E$14*AZ23/100*(1+$E$17)))/(1+$E$17),IF('Verwaltung (ausblenden)'!$D$11=TRUE,(1-EXP(-$E$14*AZ23/100*(1-$E$17)))/(1-$E$17*EXP(-$E$14*(1-$E$17))),0)) -> 0.3 | BA25: =IF('Verwaltung (ausblenden)'!$D$10=TRUE,(1-EXP(-$E$14*BA23/100*(1+$E$17)))/(1+$E$17),IF('Verwaltung (ausblenden)'!$D$11=TRUE,(1-EXP(-$E$14*BA23/100*(1-$E$17)))/(1-$E$17*EXP(-$E$14*(1-$E$17))),0)) -> 0.3 | BB25: =IF('Verwaltung (ausblenden)'!$D$10=TRUE,(1-EXP(-$E$14*BB23/100*(1+$E$17)))/(1+$E$17),IF('Verwaltung (ausblenden)'!$D$11=TRUE,(1-EXP(-$E$14*BB23/100*(1-$E$17)))/(1-$E$17*EXP(-$E$14*(1-$E$17))),0)) -> 0.3 | BC25: =IF('Verwaltung (ausblenden)'!$D$10=TRUE,(1-EXP(-$E$14*BC23/100*(1+$E$17)))/(1+$E$17),IF('Verwaltung (ausblenden)'!$D$11=TRUE,(1-EXP(-$E$14*BC23/100*(1-$E$17)))/(1-$E$17*EXP(-$E$14*(1-$E$17))),0)) -> 0.3 | BD25: =IF('Verwaltung (ausblenden)'!$D$10=TRUE,(1-EXP(-$E$14*BD23/100*(1+$E$17)))/(1+$E$17),IF('Verwaltung (ausblenden)'!$D$11=TRUE,(1-EXP(-$E$14*BD23/100*(1-$E$17)))/(1-$E$17*EXP(-$E$14*(1-$E$17))),0)) -> 0.3 | BE25: =IF('Verwaltung (ausblenden)'!$D$10=TRUE,(1-EXP(-$E$14*BE23/100*(1+$E$17)))/(1+$E$17),IF('Verwaltung (ausblenden)'!$D$11=TRUE,(1-EXP(-$E$14*BE23/100*(1-$E$17)))/(1-$E$17*EXP(-$E$14*(1-$E$17))),0)) -> 0.3 | BF25: =IF('Verwaltung (ausblenden)'!$D$10=TRUE,(1-EXP(-$E$14*BF23/100*(1+$E$17)))/(1+$E$17),IF('Verwaltung (ausblenden)'!$D$11=TRUE,(1-EXP(-$E$14*BF23/100*(1-$E$17)))/(1-$E$17*EXP(-$E$14*(1-$E$17))),0)) -> 0.3 | BG25: =IF('Verwaltung (ausblenden)'!$D$10=TRUE,(1-EXP(-$E$14*BG23/100*(1+$E$17)))/(1+$E$17),IF('Verwaltung (ausblenden)'!$D$11=TRUE,(1-EXP(-$E$14*BG23/100*(1-$E$17)))/(1-$E$17*EXP(-$E$14*(1-$E$17))),0)) -> 0.3 | BH25: =IF('Verwaltung (ausblenden)'!$D$10=TRUE,(1-EXP(-$E$14*BH23/100*(1+$E$17)))/(1+$E$17),IF('Verwaltung (ausblenden)'!$D$11=TRUE,(1-EXP(-$E$14*BH23/100*(1-$E$17)))/(1-$E$17*EXP(-$E$14*(1-$E$17))),0)) -> 0.3 | BI25: =IF('Verwaltung (ausblenden)'!$D$10=TRUE,(1-EXP(-$E$14*BI23/100*(1+$E$17)))/(1+$E$17),IF('Verwaltung (ausblenden)'!$D$11=TRUE,(1-EXP(-$E$14*BI23/100*(1-$E$17)))/(1-$E$17*EXP(-$E$14*(1-$E$17))),0)) -> 0.3 | BJ25: =IF('Verwaltung (ausblenden)'!$D$10=TRUE,(1-EXP(-$E$14*BJ23/100*(1+$E$17)))/(1+$E$17),IF('Verwaltung (ausblenden)'!$D$11=TRUE,(1-EXP(-$E$14*BJ23/100*(1-$E$17)))/(1-$E$17*EXP(-$E$14*(1-$E$17))),0)) -> 0.3 | BK25: =IF('Verwaltung (ausblenden)'!$D$10=TRUE,(1-EXP(-$E$14*BK23/100*(1+$E$17)))/(1+$E$17),IF('Verwaltung (ausblenden)'!$D$11=TRUE,(1-EXP(-$E$14*BK23/100*(1-$E$17)))/(1-$E$17*EXP(-$E$14*(1-$E$17))),0)) -> 0.3 | BL25: =IF('Verwaltung (ausblenden)'!$D$10=TRUE,(1-EXP(-$E$14*BL23/100*(1+$E$17)))/(1+$E$17),IF('Verwaltung (ausblenden)'!$D$11=TRUE,(1-EXP(-$E$14*BL23/100*(1-$E$17)))/(1-$E$17*EXP(-$E$14*(1-$E$17))),0)) -> 0.3 | BM25: =IF('Verwaltung (ausblenden)'!$D$10=TRUE,(1-EXP(-$E$14*BM23/100*(1+$E$17)))/(1+$E$17),IF('Verwaltung (ausblenden)'!$D$11=TRUE,(1-EXP(-$E$14*BM23/100*(1-$E$17)))/(1-$E$17*EXP(-$E$14*(1-$E$17))),0)) -> 0.3 | BN25: =IF('Verwaltung (ausblenden)'!$D$10=TRUE,(1-EXP(-$E$14*BN23/100*(1+$E$17)))/(1+$E$17),IF('Verwaltung (ausblenden)'!$D$11=TRUE,(1-EXP(-$E$14*BN23/100*(1-$E$17)))/(1-$E$17*EXP(-$E$14*(1-$E$17))),0)) -> 0.3 | BO25: =IF('Verwaltung (ausblenden)'!$D$10=TRUE,(1-EXP(-$E$14*BO23/100*(1+$E$17)))/(1+$E$17),IF('Verwaltung (ausblenden)'!$D$11=TRUE,(1-EXP(-$E$14*BO23/100*(1-$E$17)))/(1-$E$17*EXP(-$E$14*(1-$E$17))),0)) -> 0.3 | BP25: =IF('Verwaltung (ausblenden)'!$D$10=TRUE,(1-EXP(-$E$14*BP23/100*(1+$E$17)))/(1+$E$17),IF('Verwaltung (ausblenden)'!$D$11=TRUE,(1-EXP(-$E$14*BP23/100*(1-$E$17)))/(1-$E$17*EXP(-$E$14*(1-$E$17))),0)) -> 0.3 | BQ25: =IF('Verwaltung (ausblenden)'!$D$10=TRUE,(1-EXP(-$E$14*BQ23/100*(1+$E$17)))/(1+$E$17),IF('Verwaltung (ausblenden)'!$D$11=TRUE,(1-EXP(-$E$14*BQ23/100*(1-$E$17)))/(1-$E$17*EXP(-$E$14*(1-$E$17))),0)) -> 0.3 | BR25: =IF('Verwaltung (ausblenden)'!$D$10=TRUE,(1-EXP(-$E$14*BR23/100*(1+$E$17)))/(1+$E$17),IF('Verwaltung (ausblenden)'!$D$11=TRUE,(1-EXP(-$E$14*BR23/100*(1-$E$17)))/(1-$E$17*EXP(-$E$14*(1-$E$17))),0)) -> 0.4 | BS25: =IF('Verwaltung (ausblenden)'!$D$10=TRUE,(1-EXP(-$E$14*BS23/100*(1+$E$17)))/(1+$E$17),IF('Verwaltung (ausblenden)'!$D$11=TRUE,(1-EXP(-$E$14*BS23/100*(1-$E$17)))/(1-$E$17*EXP(-$E$14*(1-$E$17))),0)) -> 0.4 | BT25: =IF('Verwaltung (ausblenden)'!$D$10=TRUE,(1-EXP(-$E$14*BT23/100*(1+$E$17)))/(1+$E$17),IF('Verwaltung (ausblenden)'!$D$11=TRUE,(1-EXP(-$E$14*BT23/100*(1-$E$17)))/(1-$E$17*EXP(-$E$14*(1-$E$17))),0)) -> 0.4 | BU25: =IF('Verwaltung (ausblenden)'!$D$10=TRUE,(1-EXP(-$E$14*BU23/100*(1+$E$17)))/(1+$E$17),IF('Verwaltung (ausblenden)'!$D$11=TRUE,(1-EXP(-$E$14*BU23/100*(1-$E$17)))/(1-$E$17*EXP(-$E$14*(1-$E$17))),0)) -> 0.4 | BV25: =IF('Verwaltung (ausblenden)'!$D$10=TRUE,(1-EXP(-$E$14*BV23/100*(1+$E$17)))/(1+$E$17),IF('Verwaltung (ausblenden)'!$D$11=TRUE,(1-EXP(-$E$14*BV23/100*(1-$E$17)))/(1-$E$17*EXP(-$E$14*(1-$E$17))),0)) -> 0.4 | BW25: =IF('Verwaltung (ausblenden)'!$D$10=TRUE,(1-EXP(-$E$14*BW23/100*(1+$E$17)))/(1+$E$17),IF('Verwaltung (ausblenden)'!$D$11=TRUE,(1-EXP(-$E$14*BW23/100*(1-$E$17)))/(1-$E$17*EXP(-$E$14*(1-$E$17))),0)) -> 0.4 | BX25: =IF('Verwaltung (ausblenden)'!$D$10=TRUE,(1-EXP(-$E$14*BX23/100*(1+$E$17)))/(1+$E$17),IF('Verwaltung (ausblenden)'!$D$11=TRUE,(1-EXP(-$E$14*BX23/100*(1-$E$17)))/(1-$E$17*EXP(-$E$14*(1-$E$17))),0)) -> 0.4 | BY25: =IF('Verwaltung (ausblenden)'!$D$10=TRUE,(1-EXP(-$E$14*BY23/100*(1+$E$17)))/(1+$E$17),IF('Verwaltung (ausblenden)'!$D$11=TRUE,(1-EXP(-$E$14*BY23/100*(1-$E$17)))/(1-$E$17*EXP(-$E$14*(1-$E$17))),0)) -> 0.4 | BZ25: =IF('Verwaltung (ausblenden)'!$D$10=TRUE,(1-EXP(-$E$14*BZ23/100*(1+$E$17)))/(1+$E$17),IF('Verwaltung (ausblenden)'!$D$11=TRUE,(1-EXP(-$E$14*BZ23/100*(1-$E$17)))/(1-$E$17*EXP(-$E$14*(1-$E$17))),0)) -> 0.4 | CA25: =IF('Verwaltung (ausblenden)'!$D$10=TRUE,(1-EXP(-$E$14*CA23/100*(1+$E$17)))/(1+$E$17),IF('Verwaltung (ausblenden)'!$D$11=TRUE,(1-EXP(-$E$14*CA23/100*(1-$E$17)))/(1-$E$17*EXP(-$E$14*(1-$E$17))),0)) -> 0.4 | CB25: =IF('Verwaltung (ausblenden)'!$D$10=TRUE,(1-EXP(-$E$14*CB23/100*(1+$E$17)))/(1+$E$17),IF('Verwaltung (ausblenden)'!$D$11=TRUE,(1-EXP(-$E$14*CB23/100*(1-$E$17)))/(1-$E$17*EXP(-$E$14*(1-$E$17))),0)) -> 0.4 | CC25: =IF('Verwaltung (ausblenden)'!$D$10=TRUE,(1-EXP(-$E$14*CC23/100*(1+$E$17)))/(1+$E$17),IF('Verwaltung (ausblenden)'!$D$11=TRUE,(1-EXP(-$E$14*CC23/100*(1-$E$17)))/(1-$E$17*EXP(-$E$14*(1-$E$17))),0)) -> 0.4 | CD25: =IF('Verwaltung (ausblenden)'!$D$10=TRUE,(1-EXP(-$E$14*CD23/100*(1+$E$17)))/(1+$E$17),IF('Verwaltung (ausblenden)'!$D$11=TRUE,(1-EXP(-$E$14*CD23/100*(1-$E$17)))/(1-$E$17*EXP(-$E$14*(1-$E$17))),0)) -> 0.4 | CE25: =IF('Verwaltung (ausblenden)'!$D$10=TRUE,(1-EXP(-$E$14*CE23/100*(1+$E$17)))/(1+$E$17),IF('Verwaltung (ausblenden)'!$D$11=TRUE,(1-EXP(-$E$14*CE23/100*(1-$E$17)))/(1-$E$17*EXP(-$E$14*(1-$E$17))),0)) -> 0.4 | CF25: =IF('Verwaltung (ausblenden)'!$D$10=TRUE,(1-EXP(-$E$14*CF23/100*(1+$E$17)))/(1+$E$17),IF('Verwaltung (ausblenden)'!$D$11=TRUE,(1-EXP(-$E$14*CF23/100*(1-$E$17)))/(1-$E$17*EXP(-$E$14*(1-$E$17))),0)) -> 0.4 | CG25: =IF('Verwaltung (ausblenden)'!$D$10=TRUE,(1-EXP(-$E$14*CG23/100*(1+$E$17)))/(1+$E$17),IF('Verwaltung (ausblenden)'!$D$11=TRUE,(1-EXP(-$E$14*CG23/100*(1-$E$17)))/(1-$E$17*EXP(-$E$14*(1-$E$17))),0)) -> 0.4 | CH25: =IF('Verwaltung (ausblenden)'!$D$10=TRUE,(1-EXP(-$E$14*CH23/100*(1+$E$17)))/(1+$E$17),IF('Verwaltung (ausblenden)'!$D$11=TRUE,(1-EXP(-$E$14*CH23/100*(1-$E$17)))/(1-$E$17*EXP(-$E$14*(1-$E$17))),0)) -> 0.4 | CI25: =IF('Verwaltung (ausblenden)'!$D$10=TRUE,(1-EXP(-$E$14*CI23/100*(1+$E$17)))/(1+$E$17),IF('Verwaltung (ausblenden)'!$D$11=TRUE,(1-EXP(-$E$14*CI23/100*(1-$E$17)))/(1-$E$17*EXP(-$E$14*(1-$E$17))),0)) -> 0.4 | CJ25: =IF('Verwaltung (ausblenden)'!$D$10=TRUE,(1-EXP(-$E$14*CJ23/100*(1+$E$17)))/(1+$E$17),IF('Verwaltung (ausblenden)'!$D$11=TRUE,(1-EXP(-$E$14*CJ23/100*(1-$E$17)))/(1-$E$17*EXP(-$E$14*(1-$E$17))),0)) -> 0.4 | CK25: =IF('Verwaltung (ausblenden)'!$D$10=TRUE,(1-EXP(-$E$14*CK23/100*(1+$E$17)))/(1+$E$17),IF('Verwaltung (ausblenden)'!$D$11=TRUE,(1-EXP(-$E$14*CK23/100*(1-$E$17)))/(1-$E$17*EXP(-$E$14*(1-$E$17))),0)) -> 0.4 | CL25: =IF('Verwaltung (ausblenden)'!$D$10=TRUE,(1-EXP(-$E$14*CL23/100*(1+$E$17)))/(1+$E$17),IF('Verwaltung (ausblenden)'!$D$11=TRUE,(1-EXP(-$E$14*CL23/100*(1-$E$17)))/(1-$E$17*EXP(-$E$14*(1-$E$17))),0)) -> 0.4 | CM25: =IF('Verwaltung (ausblenden)'!$D$10=TRUE,(1-EXP(-$E$14*CM23/100*(1+$E$17)))/(1+$E$17),IF('Verwaltung (ausblenden)'!$D$11=TRUE,(1-EXP(-$E$14*CM23/100*(1-$E$17)))/(1-$E$17*EXP(-$E$14*(1-$E$17))),0)) -> 0.4 | CN25: =IF('Verwaltung (ausblenden)'!$D$10=TRUE,(1-EXP(-$E$14*CN23/100*(1+$E$17)))/(1+$E$17),IF('Verwaltung (ausblenden)'!$D$11=TRUE,(1-EXP(-$E$14*CN23/100*(1-$E$17)))/(1-$E$17*EXP(-$E$14*(1-$E$17))),0)) -> 0.4 | CO25: =IF('Verwaltung (ausblenden)'!$D$10=TRUE,(1-EXP(-$E$14*CO23/100*(1+$E$17)))/(1+$E$17),IF('Verwaltung (ausblenden)'!$D$11=TRUE,(1-EXP(-$E$14*CO23/100*(1-$E$17)))/(1-$E$17*EXP(-$E$14*(1-$E$17))),0)) -> 0.4 | CP25: =IF('Verwaltung (ausblenden)'!$D$10=TRUE,(1-EXP(-$E$14*CP23/100*(1+$E$17)))/(1+$E$17),IF('Verwaltung (ausblenden)'!$D$11=TRUE,(1-EXP(-$E$14*CP23/100*(1-$E$17)))/(1-$E$17*EXP(-$E$14*(1-$E$17))),0)) -> 0.4 | CQ25: =IF('Verwaltung (ausblenden)'!$D$10=TRUE,(1-EXP(-$E$14*CQ23/100*(1+$E$17)))/(1+$E$17),IF('Verwaltung (ausblenden)'!$D$11=TRUE,(1-EXP(-$E$14*CQ23/100*(1-$E$17)))/(1-$E$17*EXP(-$E$14*(1-$E$17))),0)) -> 0.4 | CR25: =IF('Verwaltung (ausblenden)'!$D$10=TRUE,(1-EXP(-$E$14*CR23/100*(1+$E$17)))/(1+$E$17),IF('Verwaltung (ausblenden)'!$D$11=TRUE,(1-EXP(-$E$14*CR23/100*(1-$E$17)))/(1-$E$17*EXP(-$E$14*(1-$E$17))),0)) -> 0.4 | CS25: =IF('Verwaltung (ausblenden)'!$D$10=TRUE,(1-EXP(-$E$14*CS23/100*(1+$E$17)))/(1+$E$17),IF('Verwaltung (ausblenden)'!$D$11=TRUE,(1-EXP(-$E$14*CS23/100*(1-$E$17)))/(1-$E$17*EXP(-$E$14*(1-$E$17))),0)) -> 0.4 | CT25: =IF('Verwaltung (ausblenden)'!$D$10=TRUE,(1-EXP(-$E$14*CT23/100*(1+$E$17)))/(1+$E$17),IF('Verwaltung (ausblenden)'!$D$11=TRUE,(1-EXP(-$E$14*CT23/100*(1-$E$17)))/(1-$E$17*EXP(-$E$14*(1-$E$17))),0)) -> 0.4 | CU25: =IF('Verwaltung (ausblenden)'!$D$10=TRUE,(1-EXP(-$E$14*CU23/100*(1+$E$17)))/(1+$E$17),IF('Verwaltung (ausblenden)'!$D$11=TRUE,(1-EXP(-$E$14*CU23/100*(1-$E$17)))/(1-$E$17*EXP(-$E$14*(1-$E$17))),0)) -> 0.4 | CV25: =IF('Verwaltung (ausblenden)'!$D$10=TRUE,(1-EXP(-$E$14*CV23/100*(1+$E$17)))/(1+$E$17),IF('Verwaltung (ausblenden)'!$D$11=TRUE,(1-EXP(-$E$14*CV23/100*(1-$E$17)))/(1-$E$17*EXP(-$E$14*(1-$E$17))),0)) -> 0.4 | CW25: =IF('Verwaltung (ausblenden)'!$D$10=TRUE,(1-EXP(-$E$14*CW23/100*(1+$E$17)))/(1+$E$17),IF('Verwaltung (ausblenden)'!$D$11=TRUE,(1-EXP(-$E$14*CW23/100*(1-$E$17)))/(1-$E$17*EXP(-$E$14*(1-$E$17))),0)) -> 0.4 | CX25: =IF('Verwaltung (ausblenden)'!$D$10=TRUE,(1-EXP(-$E$14*CX23/100*(1+$E$17)))/(1+$E$17),IF('Verwaltung (ausblenden)'!$D$11=TRUE,(1-EXP(-$E$14*CX23/100*(1-$E$17)))/(1-$E$17*EXP(-$E$14*(1-$E$17))),0)) -> 0.4 | CY25: =IF('Verwaltung (ausblenden)'!$D$10=TRUE,(1-EXP(-$E$14*CY23/100*(1+$E$17)))/(1+$E$17),IF('Verwaltung (ausblenden)'!$D$11=TRUE,(1-EXP(-$E$14*CY23/100*(1-$E$17)))/(1-$E$17*EXP(-$E$14*(1-$E$17))),0)) -> 0.4 | CZ25: =IF('Verwaltung (ausblenden)'!$D$10=TRUE,(1-EXP(-$E$14*CZ23/100*(1+$E$17)))/(1+$E$17),IF('Verwaltung (ausblenden)'!$D$11=TRUE,(1-EXP(-$E$14*CZ23/100*(1-$E$17)))/(1-$E$17*EXP(-$E$14*(1-$E$17))),0)) -> 0.4 | DA25: =IF('Verwaltung (ausblenden)'!$D$10=TRUE,(1-EXP(-$E$14*DA23/100*(1+$E$17)))/(1+$E$17),IF('Verwaltung (ausblenden)'!$D$11=TRUE,(1-EXP(-$E$14*DA23/100*(1-$E$17)))/(1-$E$17*EXP(-$E$14*(1-$E$17))),0)) -> 0.5
B26: Wärmeübertrager-Wirkungsgrad kaltes Fluid | C26: ε2(x) | D26: [-] | E26: =IF('Verwaltung (ausblenden)'!$D$10=TRUE,(1-EXP(-$E$15*E23/100*(1+$E$18)))/(1+$E$18),IF('Verwaltung (ausblenden)'!$D$11=TRUE,(1-EXP(-$E$15*(100-E23)/100*(1-$E$18)))/(1-$E$18*EXP(-$E$15*(1-$E$18))),0)) -> 0.0 | F26: =IF('Verwaltung (ausblenden)'!$D$10=TRUE,(1-EXP(-$E$15*F23/100*(1+$E$18)))/(1+$E$18),IF('Verwaltung (ausblenden)'!$D$11=TRUE,(1-EXP(-$E$15*(100-F23)/100*(1-$E$18)))/(1-$E$18*EXP(-$E$15*(1-$E$18))),0)) -> 0.0 | G26: =IF('Verwaltung (ausblenden)'!$D$10=TRUE,(1-EXP(-$E$15*G23/100*(1+$E$18)))/(1+$E$18),IF('Verwaltung (ausblenden)'!$D$11=TRUE,(1-EXP(-$E$15*(100-G23)/100*(1-$E$18)))/(1-$E$18*EXP(-$E$15*(1-$E$18))),0)) -> 0.0 | H26: =IF('Verwaltung (ausblenden)'!$D$10=TRUE,(1-EXP(-$E$15*H23/100*(1+$E$18)))/(1+$E$18),IF('Verwaltung (ausblenden)'!$D$11=TRUE,(1-EXP(-$E$15*(100-H23)/100*(1-$E$18)))/(1-$E$18*EXP(-$E$15*(1-$E$18))),0)) -> 0.0 | I26: =IF('Verwaltung (ausblenden)'!$D$10=TRUE,(1-EXP(-$E$15*I23/100*(1+$E$18)))/(1+$E$18),IF('Verwaltung (ausblenden)'!$D$11=TRUE,(1-EXP(-$E$15*(100-I23)/100*(1-$E$18)))/(1-$E$18*EXP(-$E$15*(1-$E$18))),0)) -> 0.0 | J26: =IF('Verwaltung (ausblenden)'!$D$10=TRUE,(1-EXP(-$E$15*J23/100*(1+$E$18)))/(1+$E$18),IF('Verwaltung (ausblenden)'!$D$11=TRUE,(1-EXP(-$E$15*(100-J23)/100*(1-$E$18)))/(1-$E$18*EXP(-$E$15*(1-$E$18))),0)) -> 0.0 | K26: =IF('Verwaltung (ausblenden)'!$D$10=TRUE,(1-EXP(-$E$15*K23/100*(1+$E$18)))/(1+$E$18),IF('Verwaltung (ausblenden)'!$D$11=TRUE,(1-EXP(-$E$15*(100-K23)/100*(1-$E$18)))/(1-$E$18*EXP(-$E$15*(1-$E$18))),0)) -> 0.0 | L26: =IF('Verwaltung (ausblenden)'!$D$10=TRUE,(1-EXP(-$E$15*L23/100*(1+$E$18)))/(1+$E$18),IF('Verwaltung (ausblenden)'!$D$11=TRUE,(1-EXP(-$E$15*(100-L23)/100*(1-$E$18)))/(1-$E$18*EXP(-$E$15*(1-$E$18))),0)) -> 0.0 | M26: =IF('Verwaltung (ausblenden)'!$D$10=TRUE,(1-EXP(-$E$15*M23/100*(1+$E$18)))/(1+$E$18),IF('Verwaltung (ausblenden)'!$D$11=TRUE,(1-EXP(-$E$15*(100-M23)/100*(1-$E$18)))/(1-$E$18*EXP(-$E$15*(1-$E$18))),0)) -> 0.0 | N26: =IF('Verwaltung (ausblenden)'!$D$10=TRUE,(1-EXP(-$E$15*N23/100*(1+$E$18)))/(1+$E$18),IF('Verwaltung (ausblenden)'!$D$11=TRUE,(1-EXP(-$E$15*(100-N23)/100*(1-$E$18)))/(1-$E$18*EXP(-$E$15*(1-$E$18))),0)) -> 0.0 | O26: =IF('Verwaltung (ausblenden)'!$D$10=TRUE,(1-EXP(-$E$15*O23/100*(1+$E$18)))/(1+$E$18),IF('Verwaltung (ausblenden)'!$D$11=TRUE,(1-EXP(-$E$15*(100-O23)/100*(1-$E$18)))/(1-$E$18*EXP(-$E$15*(1-$E$18))),0)) -> 0.0 | P26: =IF('Verwaltung (ausblenden)'!$D$10=TRUE,(1-EXP(-$E$15*P23/100*(1+$E$18)))/(1+$E$18),IF('Verwaltung (ausblenden)'!$D$11=TRUE,(1-EXP(-$E$15*(100-P23)/100*(1-$E$18)))/(1-$E$18*EXP(-$E$15*(1-$E$18))),0)) -> 0.0 | Q26: =IF('Verwaltung (ausblenden)'!$D$10=TRUE,(1-EXP(-$E$15*Q23/100*(1+$E$18)))/(1+$E$18),IF('Verwaltung (ausblenden)'!$D$11=TRUE,(1-EXP(-$E$15*(100-Q23)/100*(1-$E$18)))/(1-$E$18*EXP(-$E$15*(1-$E$18))),0)) -> 0.1 | R26: =IF('Verwaltung (ausblenden)'!$D$10=TRUE,(1-EXP(-$E$15*R23/100*(1+$E$18)))/(1+$E$18),IF('Verwaltung (ausblenden)'!$D$11=TRUE,(1-EXP(-$E$15*(100-R23)/100*(1-$E$18)))/(1-$E$18*EXP(-$E$15*(1-$E$18))),0)) -> 0.1 | S26: =IF('Verwaltung (ausblenden)'!$D$10=TRUE,(1-EXP(-$E$15*S23/100*(1+$E$18)))/(1+$E$18),IF('Verwaltung (ausblenden)'!$D$11=TRUE,(1-EXP(-$E$15*(100-S23)/100*(1-$E$18)))/(1-$E$18*EXP(-$E$15*(1-$E$18))),0)) -> 0.1 | T26: =IF('Verwaltung (ausblenden)'!$D$10=TRUE,(1-EXP(-$E$15*T23/100*(1+$E$18)))/(1+$E$18),IF('Verwaltung (ausblenden)'!$D$11=TRUE,(1-EXP(-$E$15*(100-T23)/100*(1-$E$18)))/(1-$E$18*EXP(-$E$15*(1-$E$18))),0)) -> 0.1 | U26: =IF('Verwaltung (ausblenden)'!$D$10=TRUE,(1-EXP(-$E$15*U23/100*(1+$E$18)))/(1+$E$18),IF('Verwaltung (ausblenden)'!$D$11=TRUE,(1-EXP(-$E$15*(100-U23)/100*(1-$E$18)))/(1-$E$18*EXP(-$E$15*(1-$E$18))),0)) -> 0.1 | V26: =IF('Verwaltung (ausblenden)'!$D$10=TRUE,(1-EXP(-$E$15*V23/100*(1+$E$18)))/(1+$E$18),IF('Verwaltung (ausblenden)'!$D$11=TRUE,(1-EXP(-$E$15*(100-V23)/100*(1-$E$18)))/(1-$E$18*EXP(-$E$15*(1-$E$18))),0)) -> 0.1 | W26: =IF('Verwaltung (ausblenden)'!$D$10=TRUE,(1-EXP(-$E$15*W23/100*(1+$E$18)))/(1+$E$18),IF('Verwaltung (ausblenden)'!$D$11=TRUE,(1-EXP(-$E$15*(100-W23)/100*(1-$E$18)))/(1-$E$18*EXP(-$E$15*(1-$E$18))),0)) -> 0.1 | X26: =IF('Verwaltung (ausblenden)'!$D$10=TRUE,(1-EXP(-$E$15*X23/100*(1+$E$18)))/(1+$E$18),IF('Verwaltung (ausblenden)'!$D$11=TRUE,(1-EXP(-$E$15*(100-X23)/100*(1-$E$18)))/(1-$E$18*EXP(-$E$15*(1-$E$18))),0)) -> 0.1 | Y26: =IF('Verwaltung (ausblenden)'!$D$10=TRUE,(1-EXP(-$E$15*Y23/100*(1+$E$18)))/(1+$E$18),IF('Verwaltung (ausblenden)'!$D$11=TRUE,(1-EXP(-$E$15*(100-Y23)/100*(1-$E$18)))/(1-$E$18*EXP(-$E$15*(1-$E$18))),0)) -> 0.1 | Z26: =IF('Verwaltung (ausblenden)'!$D$10=TRUE,(1-EXP(-$E$15*Z23/100*(1+$E$18)))/(1+$E$18),IF('Verwaltung (ausblenden)'!$D$11=TRUE,(1-EXP(-$E$15*(100-Z23)/100*(1-$E$18)))/(1-$E$18*EXP(-$E$15*(1-$E$18))),0)) -> 0.1 | AA26: =IF('Verwaltung (ausblenden)'!$D$10=TRUE,(1-EXP(-$E$15*AA23/100*(1+$E$18)))/(1+$E$18),IF('Verwaltung (ausblenden)'!$D$11=TRUE,(1-EXP(-$E$15*(100-AA23)/100*(1-$E$18)))/(1-$E$18*EXP(-$E$15*(1-$E$18))),0)) -> 0.1 | AB26: =IF('Verwaltung (ausblenden)'!$D$10=TRUE,(1-EXP(-$E$15*AB23/100*(1+$E$18)))/(1+$E$18),IF('Verwaltung (ausblenden)'!$D$11=TRUE,(1-EXP(-$E$15*(100-AB23)/100*(1-$E$18)))/(1-$E$18*EXP(-$E$15*(1-$E$18))),0)) -> 0.1 | AC26: =IF('Verwaltung (ausblenden)'!$D$10=TRUE,(1-EXP(-$E$15*AC23/100*(1+$E$18)))/(1+$E$18),IF('Verwaltung (ausblenden)'!$D$11=TRUE,(1-EXP(-$E$15*(100-AC23)/100*(1-$E$18)))/(1-$E$18*EXP(-$E$15*(1-$E$18))),0)) -> 0.1 | AD26: =IF('Verwaltung (ausblenden)'!$D$10=TRUE,(1-EXP(-$E$15*AD23/100*(1+$E$18)))/(1+$E$18),IF('Verwaltung (ausblenden)'!$D$11=TRUE,(1-EXP(-$E$15*(100-AD23)/100*(1-$E$18)))/(1-$E$18*EXP(-$E$15*(1-$E$18))),0)) -> 0.1 | AE26: =IF('Verwaltung (ausblenden)'!$D$10=TRUE,(1-EXP(-$E$15*AE23/100*(1+$E$18)))/(1+$E$18),IF('Verwaltung (ausblenden)'!$D$11=TRUE,(1-EXP(-$E$15*(100-AE23)/100*(1-$E$18)))/(1-$E$18*EXP(-$E$15*(1-$E$18))),0)) -> 0.1 | AF26: =IF('Verwaltung (ausblenden)'!$D$10=TRUE,(1-EXP(-$E$15*AF23/100*(1+$E$18)))/(1+$E$18),IF('Verwaltung (ausblenden)'!$D$11=TRUE,(1-EXP(-$E$15*(100-AF23)/100*(1-$E$18)))/(1-$E$18*EXP(-$E$15*(1-$E$18))),0)) -> 0.1 | AG26: =IF('Verwaltung (ausblenden)'!$D$10=TRUE,(1-EXP(-$E$15*AG23/100*(1+$E$18)))/(1+$E$18),IF('Verwaltung (ausblenden)'!$D$11=TRUE,(1-EXP(-$E$15*(100-AG23)/100*(1-$E$18)))/(1-$E$18*EXP(-$E$15*(1-$E$18))),0)) -> 0.1 | AH26: =IF('Verwaltung (ausblenden)'!$D$10=TRUE,(1-EXP(-$E$15*AH23/100*(1+$E$18)))/(1+$E$18),IF('Verwaltung (ausblenden)'!$D$11=TRUE,(1-EXP(-$E$15*(100-AH23)/100*(1-$E$18)))/(1-$E$18*EXP(-$E$15*(1-$E$18))),0)) -> 0.1 | AI26: =IF('Verwaltung (ausblenden)'!$D$10=TRUE,(1-EXP(-$E$15*AI23/100*(1+$E$18)))/(1+$E$18),IF('Verwaltung (ausblenden)'!$D$11=TRUE,(1-EXP(-$E$15*(100-AI23)/100*(1-$E$18)))/(1-$E$18*EXP(-$E$15*(1-$E$18))),0)) -> 0.1 | AJ26: =IF('Verwaltung (ausblenden)'!$D$10=TRUE,(1-EXP(-$E$15*AJ23/100*(1+$E$18)))/(1+$E$18),IF('Verwaltung (ausblenden)'!$D$11=TRUE,(1-EXP(-$E$15*(100-AJ23)/100*(1-$E$18)))/(1-$E$18*EXP(-$E$15*(1-$E$18))),0)) -> 0.1 | AK26: =IF('Verwaltung (ausblenden)'!$D$10=TRUE,(1-EXP(-$E$15*AK23/100*(1+$E$18)))/(1+$E$18),IF('Verwaltung (ausblenden)'!$D$11=TRUE,(1-EXP(-$E$15*(100-AK23)/100*(1-$E$18)))/(1-$E$18*EXP(-$E$15*(1-$E$18))),0)) -> 0.1 | AL26: =IF('Verwaltung (ausblenden)'!$D$10=TRUE,(1-EXP(-$E$15*AL23/100*(1+$E$18)))/(1+$E$18),IF('Verwaltung (ausblenden)'!$D$11=TRUE,(1-EXP(-$E$15*(100-AL23)/100*(1-$E$18)))/(1-$E$18*EXP(-$E$15*(1-$E$18))),0)) -> 0.1 | AM26: =IF('Verwaltung (ausblenden)'!$D$10=TRUE,(1-EXP(-$E$15*AM23/100*(1+$E$18)))/(1+$E$18),IF('Verwaltung (ausblenden)'!$D$11=TRUE,(1-EXP(-$E$15*(100-AM23)/100*(1-$E$18)))/(1-$E$18*EXP(-$E$15*(1-$E$18))),0)) -> 0.1 | AN26: =IF('Verwaltung (ausblenden)'!$D$10=TRUE,(1-EXP(-$E$15*AN23/100*(1+$E$18)))/(1+$E$18),IF('Verwaltung (ausblenden)'!$D$11=TRUE,(1-EXP(-$E$15*(100-AN23)/100*(1-$E$18)))/(1-$E$18*EXP(-$E$15*(1-$E$18))),0)) -> 0.1 | AO26: =IF('Verwaltung (ausblenden)'!$D$10=TRUE,(1-EXP(-$E$15*AO23/100*(1+$E$18)))/(1+$E$18),IF('Verwaltung (ausblenden)'!$D$11=TRUE,(1-EXP(-$E$15*(100-AO23)/100*(1-$E$18)))/(1-$E$18*EXP(-$E$15*(1-$E$18))),0)) -> 0.1 | AP26: =IF('Verwaltung (ausblenden)'!$D$10=TRUE,(1-EXP(-$E$15*AP23/100*(1+$E$18)))/(1+$E$18),IF('Verwaltung (ausblenden)'!$D$11=TRUE,(1-EXP(-$E$15*(100-AP23)/100*(1-$E$18)))/(1-$E$18*EXP(-$E$15*(1-$E$18))),0)) -> 0.1 | AQ26: =IF('Verwaltung (ausblenden)'!$D$10=TRUE,(1-EXP(-$E$15*AQ23/100*(1+$E$18)))/(1+$E$18),IF('Verwaltung (ausblenden)'!$D$11=TRUE,(1-EXP(-$E$15*(100-AQ23)/100*(1-$E$18)))/(1-$E$18*EXP(-$E$15*(1-$E$18))),0)) -> 0.1 | AR26: =IF('Verwaltung (ausblenden)'!$D$10=TRUE,(1-EXP(-$E$15*AR23/100*(1+$E$18)))/(1+$E$18),IF('Verwaltung (ausblenden)'!$D$11=TRUE,(1-EXP(-$E$15*(100-AR23)/100*(1-$E$18)))/(1-$E$18*EXP(-$E$15*(1-$E$18))),0)) -> 0.1 | AS26: =IF('Verwaltung (ausblenden)'!$D$10=TRUE,(1-EXP(-$E$15*AS23/100*(1+$E$18)))/(1+$E$18),IF('Verwaltung (ausblenden)'!$D$11=TRUE,(1-EXP(-$E$15*(100-AS23)/100*(1-$E$18)))/(1-$E$18*EXP(-$E$15*(1-$E$18))),0)) -> 0.1 | AT26: =IF('Verwaltung (ausblenden)'!$D$10=TRUE,(1-EXP(-$E$15*AT23/100*(1+$E$18)))/(1+$E$18),IF('Verwaltung (ausblenden)'!$D$11=TRUE,(1-EXP(-$E$15*(100-AT23)/100*(1-$E$18)))/(1-$E$18*EXP(-$E$15*(1-$E$18))),0)) -> 0.2 | AU26: =IF('Verwaltung (ausblenden)'!$D$10=TRUE,(1-EXP(-$E$15*AU23/100*(1+$E$18)))/(1+$E$18),IF('Verwaltung (ausblenden)'!$D$11=TRUE,(1-EXP(-$E$15*(100-AU23)/100*(1-$E$18)))/(1-$E$18*EXP(-$E$15*(1-$E$18))),0)) -> 0.2 | AV26: =IF('Verwaltung (ausblenden)'!$D$10=TRUE,(1-EXP(-$E$15*AV23/100*(1+$E$18)))/(1+$E$18),IF('Verwaltung (ausblenden)'!$D$11=TRUE,(1-EXP(-$E$15*(100-AV23)/100*(1-$E$18)))/(1-$E$18*EXP(-$E$15*(1-$E$18))),0)) -> 0.2 | AW26: =IF('Verwaltung (ausblenden)'!$D$10=TRUE,(1-EXP(-$E$15*AW23/100*(1+$E$18)))/(1+$E$18),IF('Verwaltung (ausblenden)'!$D$11=TRUE,(1-EXP(-$E$15*(100-AW23)/100*(1-$E$18)))/(1-$E$18*EXP(-$E$15*(1-$E$18))),0)) -> 0.2 | AX26: =IF('Verwaltung (ausblenden)'!$D$10=TRUE,(1-EXP(-$E$15*AX23/100*(1+$E$18)))/(1+$E$18),IF('Verwaltung (ausblenden)'!$D$11=TRUE,(1-EXP(-$E$15*(100-AX23)/100*(1-$E$18)))/(1-$E$18*EXP(-$E$15*(1-$E$18))),0)) -> 0.2 | AY26: =IF('Verwaltung (ausblenden)'!$D$10=TRUE,(1-EXP(-$E$15*AY23/100*(1+$E$18)))/(1+$E$18),IF('Verwaltung (ausblenden)'!$D$11=TRUE,(1-EXP(-$E$15*(100-AY23)/100*(1-$E$18)))/(1-$E$18*EXP(-$E$15*(1-$E$18))),0)) -> 0.2 | AZ26: =IF('Verwaltung (ausblenden)'!$D$10=TRUE,(1-EXP(-$E$15*AZ23/100*(1+$E$18)))/(1+$E$18),IF('Verwaltung (ausblenden)'!$D$11=TRUE,(1-EXP(-$E$15*(100-AZ23)/100*(1-$E$18)))/(1-$E$18*EXP(-$E$15*(1-$E$18))),0)) -> 0.2 | BA26: =IF('Verwaltung (ausblenden)'!$D$10=TRUE,(1-EXP(-$E$15*BA23/100*(1+$E$18)))/(1+$E$18),IF('Verwaltung (ausblenden)'!$D$11=TRUE,(1-EXP(-$E$15*(100-BA23)/100*(1-$E$18)))/(1-$E$18*EXP(-$E$15*(1-$E$18))),0)) -> 0.2 | BB26: =IF('Verwaltung (ausblenden)'!$D$10=TRUE,(1-EXP(-$E$15*BB23/100*(1+$E$18)))/(1+$E$18),IF('Verwaltung (ausblenden)'!$D$11=TRUE,(1-EXP(-$E$15*(100-BB23)/100*(1-$E$18)))/(1-$E$18*EXP(-$E$15*(1-$E$18))),0)) -> 0.2 | BC26: =IF('Verwaltung (ausblenden)'!$D$10=TRUE,(1-EXP(-$E$15*BC23/100*(1+$E$18)))/(1+$E$18),IF('Verwaltung (ausblenden)'!$D$11=TRUE,(1-EXP(-$E$15*(100-BC23)/100*(1-$E$18)))/(1-$E$18*EXP(-$E$15*(1-$E$18))),0)) -> 0.2 | BD26: =IF('Verwaltung (ausblenden)'!$D$10=TRUE,(1-EXP(-$E$15*BD23/100*(1+$E$18)))/(1+$E$18),IF('Verwaltung (ausblenden)'!$D$11=TRUE,(1-EXP(-$E$15*(100-BD23)/100*(1-$E$18)))/(1-$E$18*EXP(-$E$15*(1-$E$18))),0)) -> 0.2 | BE26: =IF('Verwaltung (ausblenden)'!$D$10=TRUE,(1-EXP(-$E$15*BE23/100*(1+$E$18)))/(1+$E$18),IF('Verwaltung (ausblenden)'!$D$11=TRUE,(1-EXP(-$E$15*(100-BE23)/100*(1-$E$18)))/(1-$E$18*EXP(-$E$15*(1-$E$18))),0)) -> 0.2 | BF26: =IF('Verwaltung (ausblenden)'!$D$10=TRUE,(1-EXP(-$E$15*BF23/100*(1+$E$18)))/(1+$E$18),IF('Verwaltung (ausblenden)'!$D$11=TRUE,(1-EXP(-$E$15*(100-BF23)/100*(1-$E$18)))/(1-$E$18*EXP(-$E$15*(1-$E$18))),0)) -> 0.2 | BG26: =IF('Verwaltung (ausblenden)'!$D$10=TRUE,(1-EXP(-$E$15*BG23/100*(1+$E$18)))/(1+$E$18),IF('Verwaltung (ausblenden)'!$D$11=TRUE,(1-EXP(-$E$15*(100-BG23)/100*(1-$E$18)))/(1-$E$18*EXP(-$E$15*(1-$E$18))),0)) -> 0.2 | BH26: =IF('Verwaltung (ausblenden)'!$D$10=TRUE,(1-EXP(-$E$15*BH23/100*(1+$E$18)))/(1+$E$18),IF('Verwaltung (ausblenden)'!$D$11=TRUE,(1-EXP(-$E$15*(100-BH23)/100*(1-$E$18)))/(1-$E$18*EXP(-$E$15*(1-$E$18))),0)) -> 0.2 | BI26: =IF('Verwaltung (ausblenden)'!$D$10=TRUE,(1-EXP(-$E$15*BI23/100*(1+$E$18)))/(1+$E$18),IF('Verwaltung (ausblenden)'!$D$11=TRUE,(1-EXP(-$E$15*(100-BI23)/100*(1-$E$18)))/(1-$E$18*EXP(-$E$15*(1-$E$18))),0)) -> 0.2 | BJ26: =IF('Verwaltung (ausblenden)'!$D$10=TRUE,(1-EXP(-$E$15*BJ23/100*(1+$E$18)))/(1+$E$18),IF('Verwaltung (ausblenden)'!$D$11=TRUE,(1-EXP(-$E$15*(100-BJ23)/100*(1-$E$18)))/(1-$E$18*EXP(-$E$15*(1-$E$18))),0)) -> 0.2 | BK26: =IF('Verwaltung (ausblenden)'!$D$10=TRUE,(1-EXP(-$E$15*BK23/100*(1+$E$18)))/(1+$E$18),IF('Verwaltung (ausblenden)'!$D$11=TRUE,(1-EXP(-$E$15*(100-BK23)/100*(1-$E$18)))/(1-$E$18*EXP(-$E$15*(1-$E$18))),0)) -> 0.2 | BL26: =IF('Verwaltung (ausblenden)'!$D$10=TRUE,(1-EXP(-$E$15*BL23/100*(1+$E$18)))/(1+$E$18),IF('Verwaltung (ausblenden)'!$D$11=TRUE,(1-EXP(-$E$15*(100-BL23)/100*(1-$E$18)))/(1-$E$18*EXP(-$E$15*(1-$E$18))),0)) -> 0.2 | BM26: =IF('Verwaltung (ausblenden)'!$D$10=TRUE,(1-EXP(-$E$15*BM23/100*(1+$E$18)))/(1+$E$18),IF('Verwaltung (ausblenden)'!$D$11=TRUE,(1-EXP(-$E$15*(100-BM23)/100*(1-$E$18)))/(1-$E$18*EXP(-$E$15*(1-$E$18))),0)) -> 0.2 | BN26: =IF('Verwaltung (ausblenden)'!$D$10=TRUE,(1-EXP(-$E$15*BN23/100*(1+$E$18)))/(1+$E$18),IF('Verwaltung (ausblenden)'!$D$11=TRUE,(1-EXP(-$E$15*(100-BN23)/100*(1-$E$18)))/(1-$E$18*EXP(-$E$15*(1-$E$18))),0)) -> 0.2 | BO26: =IF('Verwaltung (ausblenden)'!$D$10=TRUE,(1-EXP(-$E$15*BO23/100*(1+$E$18)))/(1+$E$18),IF('Verwaltung (ausblenden)'!$D$11=TRUE,(1-EXP(-$E$15*(100-BO23)/100*(1-$E$18)))/(1-$E$18*EXP(-$E$15*(1-$E$18))),0)) -> 0.2 | BP26: =IF('Verwaltung (ausblenden)'!$D$10=TRUE,(1-EXP(-$E$15*BP23/100*(1+$E$18)))/(1+$E$18),IF('Verwaltung (ausblenden)'!$D$11=TRUE,(1-EXP(-$E$15*(100-BP23)/100*(1-$E$18)))/(1-$E$18*EXP(-$E$15*(1-$E$18))),0)) -> 0.2 | BQ26: =IF('Verwaltung (ausblenden)'!$D$10=TRUE,(1-EXP(-$E$15*BQ23/100*(1+$E$18)))/(1+$E$18),IF('Verwaltung (ausblenden)'!$D$11=TRUE,(1-EXP(-$E$15*(100-BQ23)/100*(1-$E$18)))/(1-$E$18*EXP(-$E$15*(1-$E$18))),0)) -> 0.2 | BR26: =IF('Verwaltung (ausblenden)'!$D$10=TRUE,(1-EXP(-$E$15*BR23/100*(1+$E$18)))/(1+$E$18),IF('Verwaltung (ausblenden)'!$D$11=TRUE,(1-EXP(-$E$15*(100-BR23)/100*(1-$E$18)))/(1-$E$18*EXP(-$E$15*(1-$E$18))),0)) -> 0.2 | BS26: =IF('Verwaltung (ausblenden)'!$D$10=TRUE,(1-EXP(-$E$15*BS23/100*(1+$E$18)))/(1+$E$18),IF('Verwaltung (ausblenden)'!$D$11=TRUE,(1-EXP(-$E$15*(100-BS23)/100*(1-$E$18)))/(1-$E$18*EXP(-$E$15*(1-$E$18))),0)) -> 0.2 | BT26: =IF('Verwaltung (ausblenden)'!$D$10=TRUE,(1-EXP(-$E$15*BT23/100*(1+$E$18)))/(1+$E$18),IF('Verwaltung (ausblenden)'!$D$11=TRUE,(1-EXP(-$E$15*(100-BT23)/100*(1-$E$18)))/(1-$E$18*EXP(-$E$15*(1-$E$18))),0)) -> 0.2 | BU26: =IF('Verwaltung (ausblenden)'!$D$10=TRUE,(1-EXP(-$E$15*BU23/100*(1+$E$18)))/(1+$E$18),IF('Verwaltung (ausblenden)'!$D$11=TRUE,(1-EXP(-$E$15*(100-BU23)/100*(1-$E$18)))/(1-$E$18*EXP(-$E$15*(1-$E$18))),0)) -> 0.2 | BV26: =IF('Verwaltung (ausblenden)'!$D$10=TRUE,(1-EXP(-$E$15*BV23/100*(1+$E$18)))/(1+$E$18),IF('Verwaltung (ausblenden)'!$D$11=TRUE,(1-EXP(-$E$15*(100-BV23)/100*(1-$E$18)))/(1-$E$18*EXP(-$E$15*(1-$E$18))),0)) -> 0.2 | BW26: =IF('Verwaltung (ausblenden)'!$D$10=TRUE,(1-EXP(-$E$15*BW23/100*(1+$E$18)))/(1+$E$18),IF('Verwaltung (ausblenden)'!$D$11=TRUE,(1-EXP(-$E$15*(100-BW23)/100*(1-$E$18)))/(1-$E$18*EXP(-$E$15*(1-$E$18))),0)) -> 0.2 | BX26: =IF('Verwaltung (ausblenden)'!$D$10=TRUE,(1-EXP(-$E$15*BX23/100*(1+$E$18)))/(1+$E$18),IF('Verwaltung (ausblenden)'!$D$11=TRUE,(1-EXP(-$E$15*(100-BX23)/100*(1-$E$18)))/(1-$E$18*EXP(-$E$15*(1-$E$18))),0)) -> 0.2 | BY26: =IF('Verwaltung (ausblenden)'!$D$10=TRUE,(1-EXP(-$E$15*BY23/100*(1+$E$18)))/(1+$E$18),IF('Verwaltung (ausblenden)'!$D$11=TRUE,(1-EXP(-$E$15*(100-BY23)/100*(1-$E$18)))/(1-$E$18*EXP(-$E$15*(1-$E$18))),0)) -> 0.2 | BZ26: =IF('Verwaltung (ausblenden)'!$D$10=TRUE,(1-EXP(-$E$15*BZ23/100*(1+$E$18)))/(1+$E$18),IF('Verwaltung (ausblenden)'!$D$11=TRUE,(1-EXP(-$E$15*(100-BZ23)/100*(1-$E$18)))/(1-$E$18*EXP(-$E$15*(1-$E$18))),0)) -> 0.2 | CA26: =IF('Verwaltung (ausblenden)'!$D$10=TRUE,(1-EXP(-$E$15*CA23/100*(1+$E$18)))/(1+$E$18),IF('Verwaltung (ausblenden)'!$D$11=TRUE,(1-EXP(-$E$15*(100-CA23)/100*(1-$E$18)))/(1-$E$18*EXP(-$E$15*(1-$E$18))),0)) -> 0.2 | CB26: =IF('Verwaltung (ausblenden)'!$D$10=TRUE,(1-EXP(-$E$15*CB23/100*(1+$E$18)))/(1+$E$18),IF('Verwaltung (ausblenden)'!$D$11=TRUE,(1-EXP(-$E$15*(100-CB23)/100*(1-$E$18)))/(1-$E$18*EXP(-$E$15*(1-$E$18))),0)) -> 0.2 | CC26: =IF('Verwaltung (ausblenden)'!$D$10=TRUE,(1-EXP(-$E$15*CC23/100*(1+$E$18)))/(1+$E$18),IF('Verwaltung (ausblenden)'!$D$11=TRUE,(1-EXP(-$E$15*(100-CC23)/100*(1-$E$18)))/(1-$E$18*EXP(-$E$15*(1-$E$18))),0)) -> 0.2 | CD26: =IF('Verwaltung (ausblenden)'!$D$10=TRUE,(1-EXP(-$E$15*CD23/100*(1+$E$18)))/(1+$E$18),IF('Verwaltung (ausblenden)'!$D$11=TRUE,(1-EXP(-$E$15*(100-CD23)/100*(1-$E$18)))/(1-$E$18*EXP(-$E$15*(1-$E$18))),0)) -> 0.2 | CE26: =IF('Verwaltung (ausblenden)'!$D$10=TRUE,(1-EXP(-$E$15*CE23/100*(1+$E$18)))/(1+$E$18),IF('Verwaltung (ausblenden)'!$D$11=TRUE,(1-EXP(-$E$15*(100-CE23)/100*(1-$E$18)))/(1-$E$18*EXP(-$E$15*(1-$E$18))),0)) -> 0.2 | CF26: =IF('Verwaltung (ausblenden)'!$D$10=TRUE,(1-EXP(-$E$15*CF23/100*(1+$E$18)))/(1+$E$18),IF('Verwaltung (ausblenden)'!$D$11=TRUE,(1-EXP(-$E$15*(100-CF23)/100*(1-$E$18)))/(1-$E$18*EXP(-$E$15*(1-$E$18))),0)) -> 0.2 | CG26: =IF('Verwaltung (ausblenden)'!$D$10=TRUE,(1-EXP(-$E$15*CG23/100*(1+$E$18)))/(1+$E$18),IF('Verwaltung (ausblenden)'!$D$11=TRUE,(1-EXP(-$E$15*(100-CG23)/100*(1-$E$18)))/(1-$E$18*EXP(-$E$15*(1-$E$18))),0)) -> 0.2 | CH26: =IF('Verwaltung (ausblenden)'!$D$10=TRUE,(1-EXP(-$E$15*CH23/100*(1+$E$18)))/(1+$E$18),IF('Verwaltung (ausblenden)'!$D$11=TRUE,(1-EXP(-$E$15*(100-CH23)/100*(1-$E$18)))/(1-$E$18*EXP(-$E$15*(1-$E$18))),0)) -> 0.2 | CI26: =IF('Verwaltung (ausblenden)'!$D$10=TRUE,(1-EXP(-$E$15*CI23/100*(1+$E$18)))/(1+$E$18),IF('Verwaltung (ausblenden)'!$D$11=TRUE,(1-EXP(-$E$15*(100-CI23)/100*(1-$E$18)))/(1-$E$18*EXP(-$E$15*(1-$E$18))),0)) -> 0.2 | CJ26: =IF('Verwaltung (ausblenden)'!$D$10=TRUE,(1-EXP(-$E$15*CJ23/100*(1+$E$18)))/(1+$E$18),IF('Verwaltung (ausblenden)'!$D$11=TRUE,(1-EXP(-$E$15*(100-CJ23)/100*(1-$E$18)))/(1-$E$18*EXP(-$E$15*(1-$E$18))),0)) -> 0.2 | CK26: =IF('Verwaltung (ausblenden)'!$D$10=TRUE,(1-EXP(-$E$15*CK23/100*(1+$E$18)))/(1+$E$18),IF('Verwaltung (ausblenden)'!$D$11=TRUE,(1-EXP(-$E$15*(100-CK23)/100*(1-$E$18)))/(1-$E$18*EXP(-$E$15*(1-$E$18))),0)) -> 0.2 | CL26: =IF('Verwaltung (ausblenden)'!$D$10=TRUE,(1-EXP(-$E$15*CL23/100*(1+$E$18)))/(1+$E$18),IF('Verwaltung (ausblenden)'!$D$11=TRUE,(1-EXP(-$E$15*(100-CL23)/100*(1-$E$18)))/(1-$E$18*EXP(-$E$15*(1-$E$18))),0)) -> 0.2 | CM26: =IF('Verwaltung (ausblenden)'!$D$10=TRUE,(1-EXP(-$E$15*CM23/100*(1+$E$18)))/(1+$E$18),IF('Verwaltung (ausblenden)'!$D$11=TRUE,(1-EXP(-$E$15*(100-CM23)/100*(1-$E$18)))/(1-$E$18*EXP(-$E$15*(1-$E$18))),0)) -> 0.2 | CN26: =IF('Verwaltung (ausblenden)'!$D$10=TRUE,(1-EXP(-$E$15*CN23/100*(1+$E$18)))/(1+$E$18),IF('Verwaltung (ausblenden)'!$D$11=TRUE,(1-EXP(-$E$15*(100-CN23)/100*(1-$E$18)))/(1-$E$18*EXP(-$E$15*(1-$E$18))),0)) -> 0.3 | CO26: =IF('Verwaltung (ausblenden)'!$D$10=TRUE,(1-EXP(-$E$15*CO23/100*(1+$E$18)))/(1+$E$18),IF('Verwaltung (ausblenden)'!$D$11=TRUE,(1-EXP(-$E$15*(100-CO23)/100*(1-$E$18)))/(1-$E$18*EXP(-$E$15*(1-$E$18))),0)) -> 0.3 | CP26: =IF('Verwaltung (ausblenden)'!$D$10=TRUE,(1-EXP(-$E$15*CP23/100*(1+$E$18)))/(1+$E$18),IF('Verwaltung (ausblenden)'!$D$11=TRUE,(1-EXP(-$E$15*(100-CP23)/100*(1-$E$18)))/(1-$E$18*EXP(-$E$15*(1-$E$18))),0)) -> 0.3 | CQ26: =IF('Verwaltung (ausblenden)'!$D$10=TRUE,(1-EXP(-$E$15*CQ23/100*(1+$E$18)))/(1+$E$18),IF('Verwaltung (ausblenden)'!$D$11=TRUE,(1-EXP(-$E$15*(100-CQ23)/100*(1-$E$18)))/(1-$E$18*EXP(-$E$15*(1-$E$18))),0)) -> 0.3 | CR26: =IF('Verwaltung (ausblenden)'!$D$10=TRUE,(1-EXP(-$E$15*CR23/100*(1+$E$18)))/(1+$E$18),IF('Verwaltung (ausblenden)'!$D$11=TRUE,(1-EXP(-$E$15*(100-CR23)/100*(1-$E$18)))/(1-$E$18*EXP(-$E$15*(1-$E$18))),0)) -> 0.3 | CS26: =IF('Verwaltung (ausblenden)'!$D$10=TRUE,(1-EXP(-$E$15*CS23/100*(1+$E$18)))/(1+$E$18),IF('Verwaltung (ausblenden)'!$D$11=TRUE,(1-EXP(-$E$15*(100-CS23)/100*(1-$E$18)))/(1-$E$18*EXP(-$E$15*(1-$E$18))),0)) -> 0.3 | CT26: =IF('Verwaltung (ausblenden)'!$D$10=TRUE,(1-EXP(-$E$15*CT23/100*(1+$E$18)))/(1+$E$18),IF('Verwaltung (ausblenden)'!$D$11=TRUE,(1-EXP(-$E$15*(100-CT23)/100*(1-$E$18)))/(1-$E$18*EXP(-$E$15*(1-$E$18))),0)) -> 0.3 | CU26: =IF('Verwaltung (ausblenden)'!$D$10=TRUE,(1-EXP(-$E$15*CU23/100*(1+$E$18)))/(1+$E$18),IF('Verwaltung (ausblenden)'!$D$11=TRUE,(1-EXP(-$E$15*(100-CU23)/100*(1-$E$18)))/(1-$E$18*EXP(-$E$15*(1-$E$18))),0)) -> 0.3 | CV26: =IF('Verwaltung (ausblenden)'!$D$10=TRUE,(1-EXP(-$E$15*CV23/100*(1+$E$18)))/(1+$E$18),IF('Verwaltung (ausblenden)'!$D$11=TRUE,(1-EXP(-$E$15*(100-CV23)/100*(1-$E$18)))/(1-$E$18*EXP(-$E$15*(1-$E$18))),0)) -> 0.3 | CW26: =IF('Verwaltung (ausblenden)'!$D$10=TRUE,(1-EXP(-$E$15*CW23/100*(1+$E$18)))/(1+$E$18),IF('Verwaltung (ausblenden)'!$D$11=TRUE,(1-EXP(-$E$15*(100-CW23)/100*(1-$E$18)))/(1-$E$18*EXP(-$E$15*(1-$E$18))),0)) -> 0.3 | CX26: =IF('Verwaltung (ausblenden)'!$D$10=TRUE,(1-EXP(-$E$15*CX23/100*(1+$E$18)))/(1+$E$18),IF('Verwaltung (ausblenden)'!$D$11=TRUE,(1-EXP(-$E$15*(100-CX23)/100*(1-$E$18)))/(1-$E$18*EXP(-$E$15*(1-$E$18))),0)) -> 0.3 | CY26: =IF('Verwaltung (ausblenden)'!$D$10=TRUE,(1-EXP(-$E$15*CY23/100*(1+$E$18)))/(1+$E$18),IF('Verwaltung (ausblenden)'!$D$11=TRUE,(1-EXP(-$E$15*(100-CY23)/100*(1-$E$18)))/(1-$E$18*EXP(-$E$15*(1-$E$18))),0)) -> 0.3 | CZ26: =IF('Verwaltung (ausblenden)'!$D$10=TRUE,(1-EXP(-$E$15*CZ23/100*(1+$E$18)))/(1+$E$18),IF('Verwaltung (ausblenden)'!$D$11=TRUE,(1-EXP(-$E$15*(100-CZ23)/100*(1-$E$18)))/(1-$E$18*EXP(-$E$15*(1-$E$18))),0)) -> 0.3 | DA26: =IF('Verwaltung (ausblenden)'!$D$10=TRUE,(1-EXP(-$E$15*DA23/100*(1+$E$18)))/(1+$E$18),IF('Verwaltung (ausblenden)'!$D$11=TRUE,(1-EXP(-$E$15*(100-DA23)/100*(1-$E$18)))/(1-$E$18*EXP(-$E$15*(1-$E$18))),0)) -> 0.3
B28: Temperatur warmes Fluid | C28: ϑ1(x) | D28: [°C] | E28: =(Interface!$D$17-Berechnung!E25*(Interface!$D$17-Interface!$D$22))*'Verwaltung (ausblenden)'!$C$17 -> 80.0 | F28: =(Interface!$D$17-Berechnung!F25*(Interface!$D$17-Interface!$D$22))*'Verwaltung (ausblenden)'!$C$17 -> 79.5 | G28: =(Interface!$D$17-Berechnung!G25*(Interface!$D$17-Interface!$D$22))*'Verwaltung (ausblenden)'!$C$17 -> 79.1 | H28: =(Interface!$D$17-Berechnung!H25*(Interface!$D$17-Interface!$D$22))*'Verwaltung (ausblenden)'!$C$17 -> 78.6 | I28: =(Interface!$D$17-Berechnung!I25*(Interface!$D$17-Interface!$D$22))*'Verwaltung (ausblenden)'!$C$17 -> 78.1 | J28: =(Interface!$D$17-Berechnung!J25*(Interface!$D$17-Interface!$D$22))*'Verwaltung (ausblenden)'!$C$17 -> 77.7 | K28: =(Interface!$D$17-Berechnung!K25*(Interface!$D$17-Interface!$D$22))*'Verwaltung (ausblenden)'!$C$17 -> 77.2 | L28: =(Interface!$D$17-Berechnung!L25*(Interface!$D$17-Interface!$D$22))*'Verwaltung (ausblenden)'!$C$17 -> 76.8 | M28: =(Interface!$D$17-Berechnung!M25*(Interface!$D$17-Interface!$D$22))*'Verwaltung (ausblenden)'!$C$17 -> 76.3 | N28: =(Interface!$D$17-Berechnung!N25*(Interface!$D$17-Interface!$D$22))*'Verwaltung (ausblenden)'!$C$17 -> 75.9 | O28: =(Interface!$D$17-Berechnung!O25*(Interface!$D$17-Interface!$D$22))*'Verwaltung (ausblenden)'!$C$17 -> 75.5 | P28: =(Interface!$D$17-Berechnung!P25*(Interface!$D$17-Interface!$D$22))*'Verwaltung (ausblenden)'!$C$17 -> 75.1 | Q28: =(Interface!$D$17-Berechnung!Q25*(Interface!$D$17-Interface!$D$22))*'Verwaltung (ausblenden)'!$C$17 -> 74.7 | R28: =(Interface!$D$17-Berechnung!R25*(Interface!$D$17-Interface!$D$22))*'Verwaltung (ausblenden)'!$C$17 -> 74.3 | S28: =(Interface!$D$17-Berechnung!S25*(Interface!$D$17-Interface!$D$22))*'Verwaltung (ausblenden)'!$C$17 -> 73.8 | T28: =(Interface!$D$17-Berechnung!T25*(Interface!$D$17-Interface!$D$22))*'Verwaltung (ausblenden)'!$C$17 -> 73.4 | U28: =(Interface!$D$17-Berechnung!U25*(Interface!$D$17-Interface!$D$22))*'Verwaltung (ausblenden)'!$C$17 -> 73.1 | V28: =(Interface!$D$17-Berechnung!V25*(Interface!$D$17-Interface!$D$22))*'Verwaltung (ausblenden)'!$C$17 -> 72.7 | W28: =(Interface!$D$17-Berechnung!W25*(Interface!$D$17-Interface!$D$22))*'Verwaltung (ausblenden)'!$C$17 -> 72.3 | X28: =(Interface!$D$17-Berechnung!X25*(Interface!$D$17-Interface!$D$22))*'Verwaltung (ausblenden)'!$C$17 -> 71.9 | Y28: =(Interface!$D$17-Berechnung!Y25*(Interface!$D$17-Interface!$D$22))*'Verwaltung (ausblenden)'!$C$17 -> 71.5 | Z28: =(Interface!$D$17-Berechnung!Z25*(Interface!$D$17-Interface!$D$22))*'Verwaltung (ausblenden)'!$C$17 -> 71.2 | AA28: =(Interface!$D$17-Berechnung!AA25*(Interface!$D$17-Interface!$D$22))*'Verwaltung (ausblenden)'!$C$17 -> 70.8 | AB28: =(Interface!$D$17-Berechnung!AB25*(Interface!$D$17-Interface!$D$22))*'Verwaltung (ausblenden)'!$C$17 -> 70.4 | AC28: =(Interface!$D$17-Berechnung!AC25*(Interface!$D$17-Interface!$D$22))*'Verwaltung (ausblenden)'!$C$17 -> 70.1 | AD28: =(Interface!$D$17-Berechnung!AD25*(Interface!$D$17-Interface!$D$22))*'Verwaltung (ausblenden)'!$C$17 -> 69.7 | AE28: =(Interface!$D$17-Berechnung!AE25*(Interface!$D$17-Interface!$D$22))*'Verwaltung (ausblenden)'!$C$17 -> 69.4 | AF28: =(Interface!$D$17-Berechnung!AF25*(Interface!$D$17-Interface!$D$22))*'Verwaltung (ausblenden)'!$C$17 -> 69.0 | AG28: =(Interface!$D$17-Berechnung!AG25*(Interface!$D$17-Interface!$D$22))*'Verwaltung (ausblenden)'!$C$17 -> 68.7 | AH28: =(Interface!$D$17-Berechnung!AH25*(Interface!$D$17-Interface!$D$22))*'Verwaltung (ausblenden)'!$C$17 -> 68.4 | AI28: =(Interface!$D$17-Berechnung!AI25*(Interface!$D$17-Interface!$D$22))*'Verwaltung (ausblenden)'!$C$17 -> 68.0 | AJ28: =(Interface!$D$17-Berechnung!AJ25*(Interface!$D$17-Interface!$D$22))*'Verwaltung (ausblenden)'!$C$17 -> 67.7 | AK28: =(Interface!$D$17-Berechnung!AK25*(Interface!$D$17-Interface!$D$22))*'Verwaltung (ausblenden)'!$C$17 -> 67.4 | AL28: =(Interface!$D$17-Berechnung!AL25*(Interface!$D$17-Interface!$D$22))*'Verwaltung (ausblenden)'!$C$17 -> 67.1 | AM28: =(Interface!$D$17-Berechnung!AM25*(Interface!$D$17-Interface!$D$22))*'Verwaltung (ausblenden)'!$C$17 -> 66.8 | AN28: =(Interface!$D$17-Berechnung!AN25*(Interface!$D$17-Interface!$D$22))*'Verwaltung (ausblenden)'!$C$17 -> 66.5 | AO28: =(Interface!$D$17-Berechnung!AO25*(Interface!$D$17-Interface!$D$22))*'Verwaltung (ausblenden)'!$C$17 -> 66.1 | AP28: =(Interface!$D$17-Berechnung!AP25*(Interface!$D$17-Interface!$D$22))*'Verwaltung (ausblenden)'!$C$17 -> 65.8 | AQ28: =(Interface!$D$17-Berechnung!AQ25*(Interface!$D$17-Interface!$D$22))*'Verwaltung (ausblenden)'!$C$17 -> 65.6 | AR28: =(Interface!$D$17-Berechnung!AR25*(Interface!$D$17-Interface!$D$22))*'Verwaltung (ausblenden)'!$C$17 -> 65.3 | AS28: =(Interface!$D$17-Berechnung!AS25*(Interface!$D$17-Interface!$D$22))*'Verwaltung (ausblenden)'!$C$17 -> 65.0 | AT28: =(Interface!$D$17-Berechnung!AT25*(Interface!$D$17-Interface!$D$22))*'Verwaltung (ausblenden)'!$C$17 -> 64.7 | AU28: =(Interface!$D$17-Berechnung!AU25*(Interface!$D$17-Interface!$D$22))*'Verwaltung (ausblenden)'!$C$17 -> 64.4 | AV28: =(Interface!$D$17-Berechnung!AV25*(Interface!$D$17-Interface!$D$22))*'Verwaltung (ausblenden)'!$C$17 -> 64.1 | AW28: =(Interface!$D$17-Berechnung!AW25*(Interface!$D$17-Interface!$D$22))*'Verwaltung (ausblenden)'!$C$17 -> 63.8 | AX28: =(Interface!$D$17-Berechnung!AX25*(Interface!$D$17-Interface!$D$22))*'Verwaltung (ausblenden)'!$C$17 -> 63.6 | AY28: =(Interface!$D$17-Berechnung!AY25*(Interface!$D$17-Interface!$D$22))*'Verwaltung (ausblenden)'!$C$17 -> 63.3 | AZ28: =(Interface!$D$17-Berechnung!AZ25*(Interface!$D$17-Interface!$D$22))*'Verwaltung (ausblenden)'!$C$17 -> 63.0 | BA28: =(Interface!$D$17-Berechnung!BA25*(Interface!$D$17-Interface!$D$22))*'Verwaltung (ausblenden)'!$C$17 -> 62.8 | BB28: =(Interface!$D$17-Berechnung!BB25*(Interface!$D$17-Interface!$D$22))*'Verwaltung (ausblenden)'!$C$17 -> 62.5 | BC28: =(Interface!$D$17-Berechnung!BC25*(Interface!$D$17-Interface!$D$22))*'Verwaltung (ausblenden)'!$C$17 -> 62.3 | BD28: =(Interface!$D$17-Berechnung!BD25*(Interface!$D$17-Interface!$D$22))*'Verwaltung (ausblenden)'!$C$17 -> 62.0 | BE28: =(Interface!$D$17-Berechnung!BE25*(Interface!$D$17-Interface!$D$22))*'Verwaltung (ausblenden)'!$C$17 -> 61.8 | BF28: =(Interface!$D$17-Berechnung!BF25*(Interface!$D$17-Interface!$D$22))*'Verwaltung (ausblenden)'!$C$17 -> 61.5 | BG28: =(Interface!$D$17-Berechnung!BG25*(Interface!$D$17-Interface!$D$22))*'Verwaltung (ausblenden)'!$C$17 -> 61.3 | BH28: =(Interface!$D$17-Berechnung!BH25*(Interface!$D$17-Interface!$D$22))*'Verwaltung (ausblenden)'!$C$17 -> 61.0 | BI28: =(Interface!$D$17-Berechnung!BI25*(Interface!$D$17-Interface!$D$22))*'Verwaltung (ausblenden)'!$C$17 -> 60.8 | BJ28: =(Interface!$D$17-Berechnung!BJ25*(Interface!$D$17-Interface!$D$22))*'Verwaltung (ausblenden)'!$C$17 -> 60.6 | BK28: =(Interface!$D$17-Berechnung!BK25*(Interface!$D$17-Interface!$D$22))*'Verwaltung (ausblenden)'!$C$17 -> 60.3 | BL28: =(Interface!$D$17-Berechnung!BL25*(Interface!$D$17-Interface!$D$22))*'Verwaltung (ausblenden)'!$C$17 -> 60.1 | BM28: =(Interface!$D$17-Berechnung!BM25*(Interface!$D$17-Interface!$D$22))*'Verwaltung (ausblenden)'!$C$17 -> 59.9 | BN28: =(Interface!$D$17-Berechnung!BN25*(Interface!$D$17-Interface!$D$22))*'Verwaltung (ausblenden)'!$C$17 -> 59.7 | BO28: =(Interface!$D$17-Berechnung!BO25*(Interface!$D$17-Interface!$D$22))*'Verwaltung (ausblenden)'!$C$17 -> 59.4 | BP28: =(Interface!$D$17-Berechnung!BP25*(Interface!$D$17-Interface!$D$22))*'Verwaltung (ausblenden)'!$C$17 -> 59.2 | BQ28: =(Interface!$D$17-Berechnung!BQ25*(Interface!$D$17-Interface!$D$22))*'Verwaltung (ausblenden)'!$C$17 -> 59.0 | BR28: =(Interface!$D$17-Berechnung!BR25*(Interface!$D$17-Interface!$D$22))*'Verwaltung (ausblenden)'!$C$17 -> 58.8 | BS28: =(Interface!$D$17-Berechnung!BS25*(Interface!$D$17-Interface!$D$22))*'Verwaltung (ausblenden)'!$C$17 -> 58.6 | BT28: =(Interface!$D$17-Berechnung!BT25*(Interface!$D$17-Interface!$D$22))*'Verwaltung (ausblenden)'!$C$17 -> 58.4 | BU28: =(Interface!$D$17-Berechnung!BU25*(Interface!$D$17-Interface!$D$22))*'Verwaltung (ausblenden)'!$C$17 -> 58.2 | BV28: =(Interface!$D$17-Berechnung!BV25*(Interface!$D$17-Interface!$D$22))*'Verwaltung (ausblenden)'!$C$17 -> 58.0 | BW28: =(Interface!$D$17-Berechnung!BW25*(Interface!$D$17-Interface!$D$22))*'Verwaltung (ausblenden)'!$C$17 -> 57.8 | BX28: =(Interface!$D$17-Berechnung!BX25*(Interface!$D$17-Interface!$D$22))*'Verwaltung (ausblenden)'!$C$17 -> 57.6 | BY28: =(Interface!$D$17-Berechnung!BY25*(Interface!$D$17-Interface!$D$22))*'Verwaltung (ausblenden)'!$C$17 -> 57.4 | BZ28: =(Interface!$D$17-Berechnung!BZ25*(Interface!$D$17-Interface!$D$22))*'Verwaltung (ausblenden)'!$C$17 -> 57.2 | CA28: =(Interface!$D$17-Berechnung!CA25*(Interface!$D$17-Interface!$D$22))*'Verwaltung (ausblenden)'!$C$17 -> 57.0 | CB28: =(Interface!$D$17-Berechnung!CB25*(Interface!$D$17-Interface!$D$22))*'Verwaltung (ausblenden)'!$C$17 -> 56.8 | CC28: =(Interface!$D$17-Berechnung!CC25*(Interface!$D$17-Interface!$D$22))*'Verwaltung (ausblenden)'!$C$17 -> 56.7 | CD28: =(Interface!$D$17-Berechnung!CD25*(Interface!$D$17-Interface!$D$22))*'Verwaltung (ausblenden)'!$C$17 -> 56.5 | CE28: =(Interface!$D$17-Berechnung!CE25*(Interface!$D$17-Interface!$D$22))*'Verwaltung (ausblenden)'!$C$17 -> 56.3 | CF28: =(Interface!$D$17-Berechnung!CF25*(Interface!$D$17-Interface!$D$22))*'Verwaltung (ausblenden)'!$C$17 -> 56.1 | CG28: =(Interface!$D$17-Berechnung!CG25*(Interface!$D$17-Interface!$D$22))*'Verwaltung (ausblenden)'!$C$17 -> 56.0 | CH28: =(Interface!$D$17-Berechnung!CH25*(Interface!$D$17-Interface!$D$22))*'Verwaltung (ausblenden)'!$C$17 -> 55.8 | CI28: =(Interface!$D$17-Berechnung!CI25*(Interface!$D$17-Interface!$D$22))*'Verwaltung (ausblenden)'!$C$17 -> 55.6 | CJ28: =(Interface!$D$17-Berechnung!CJ25*(Interface!$D$17-Interface!$D$22))*'Verwaltung (ausblenden)'!$C$17 -> 55.4 | CK28: =(Interface!$D$17-Berechnung!CK25*(Interface!$D$17-Interface!$D$22))*'Verwaltung (ausblenden)'!$C$17 -> 55.3 | CL28: =(Interface!$D$17-Berechnung!CL25*(Interface!$D$17-Interface!$D$22))*'Verwaltung (ausblenden)'!$C$17 -> 55.1 | CM28: =(Interface!$D$17-Berechnung!CM25*(Interface!$D$17-Interface!$D$22))*'Verwaltung (ausblenden)'!$C$17 -> 55.0 | CN28: =(Interface!$D$17-Berechnung!CN25*(Interface!$D$17-Interface!$D$22))*'Verwaltung (ausblenden)'!$C$17 -> 54.8 | CO28: =(Interface!$D$17-Berechnung!CO25*(Interface!$D$17-Interface!$D$22))*'Verwaltung (ausblenden)'!$C$17 -> 54.6 | CP28: =(Interface!$D$17-Berechnung!CP25*(Interface!$D$17-Interface!$D$22))*'Verwaltung (ausblenden)'!$C$17 -> 54.5 | CQ28: =(Interface!$D$17-Berechnung!CQ25*(Interface!$D$17-Interface!$D$22))*'Verwaltung (ausblenden)'!$C$17 -> 54.3 | CR28: =(Interface!$D$17-Berechnung!CR25*(Interface!$D$17-Interface!$D$22))*'Verwaltung (ausblenden)'!$C$17 -> 54.2 | CS28: =(Interface!$D$17-Berechnung!CS25*(Interface!$D$17-Interface!$D$22))*'Verwaltung (ausblenden)'!$C$17 -> 54.0 | CT28: =(Interface!$D$17-Berechnung!CT25*(Interface!$D$17-Interface!$D$22))*'Verwaltung (ausblenden)'!$C$17 -> 53.9 | CU28: =(Interface!$D$17-Berechnung!CU25*(Interface!$D$17-Interface!$D$22))*'Verwaltung (ausblenden)'!$C$17 -> 53.7 | CV28: =(Interface!$D$17-Berechnung!CV25*(Interface!$D$17-Interface!$D$22))*'Verwaltung (ausblenden)'!$C$17 -> 53.6 | CW28: =(Interface!$D$17-Berechnung!CW25*(Interface!$D$17-Interface!$D$22))*'Verwaltung (ausblenden)'!$C$17 -> 53.5 | CX28: =(Interface!$D$17-Berechnung!CX25*(Interface!$D$17-Interface!$D$22))*'Verwaltung (ausblenden)'!$C$17 -> 53.3 | CY28: =(Interface!$D$17-Berechnung!CY25*(Interface!$D$17-Interface!$D$22))*'Verwaltung (ausblenden)'!$C$17 -> 53.2 | CZ28: =(Interface!$D$17-Berechnung!CZ25*(Interface!$D$17-Interface!$D$22))*'Verwaltung (ausblenden)'!$C$17 -> 53.0 | DA28: =(Interface!$D$17-Berechnung!DA25*(Interface!$D$17-Interface!$D$22))*'Verwaltung (ausblenden)'!$C$17 -> 52.9
B29: Temperatur kaltes Fluid | C29: ϑ2(x) | D29: [°C] | E29: =(Interface!$D$22+(Interface!$D$17-Interface!$D$22)*Berechnung!E26)*'Verwaltung (ausblenden)'!$C$17 -> 20.0 | F29: =(Interface!$D$22+(Interface!$D$17-Interface!$D$22)*Berechnung!F26)*'Verwaltung (ausblenden)'!$C$17 -> 20.3 | G29: =(Interface!$D$22+(Interface!$D$17-Interface!$D$22)*Berechnung!G26)*'Verwaltung (ausblenden)'!$C$17 -> 20.6 | H29: =(Interface!$D$22+(Interface!$D$17-Interface!$D$22)*Berechnung!H26)*'Verwaltung (ausblenden)'!$C$17 -> 20.8 | I29: =(Interface!$D$22+(Interface!$D$17-Interface!$D$22)*Berechnung!I26)*'Verwaltung (ausblenden)'!$C$17 -> 21.1 | J29: =(Interface!$D$22+(Interface!$D$17-Interface!$D$22)*Berechnung!J26)*'Verwaltung (ausblenden)'!$C$17 -> 21.4 | K29: =(Interface!$D$22+(Interface!$D$17-Interface!$D$22)*Berechnung!K26)*'Verwaltung (ausblenden)'!$C$17 -> 21.7 | L29: =(Interface!$D$22+(Interface!$D$17-Interface!$D$22)*Berechnung!L26)*'Verwaltung (ausblenden)'!$C$17 -> 21.9 | M29: =(Interface!$D$22+(Interface!$D$17-Interface!$D$22)*Berechnung!M26)*'Verwaltung (ausblenden)'!$C$17 -> 22.2 | N29: =(Interface!$D$22+(Interface!$D$17-Interface!$D$22)*Berechnung!N26)*'Verwaltung (ausblenden)'!$C$17 -> 22.4 | O29: =(Interface!$D$22+(Interface!$D$17-Interface!$D$22)*Berechnung!O26)*'Verwaltung (ausblenden)'!$C$17 -> 22.7 | P29: =(Interface!$D$22+(Interface!$D$17-Interface!$D$22)*Berechnung!P26)*'Verwaltung (ausblenden)'!$C$17 -> 22.9 | Q29: =(Interface!$D$22+(Interface!$D$17-Interface!$D$22)*Berechnung!Q26)*'Verwaltung (ausblenden)'!$C$17 -> 23.2 | R29: =(Interface!$D$22+(Interface!$D$17-Interface!$D$22)*Berechnung!R26)*'Verwaltung (ausblenden)'!$C$17 -> 23.4 | S29: =(Interface!$D$22+(Interface!$D$17-Interface!$D$22)*Berechnung!S26)*'Verwaltung (ausblenden)'!$C$17 -> 23.7 | T29: =(Interface!$D$22+(Interface!$D$17-Interface!$D$22)*Berechnung!T26)*'Verwaltung (ausblenden)'!$C$17 -> 23.9 | U29: =(Interface!$D$22+(Interface!$D$17-Interface!$D$22)*Berechnung!U26)*'Verwaltung (ausblenden)'!$C$17 -> 24.1 | V29: =(Interface!$D$22+(Interface!$D$17-Interface!$D$22)*Berechnung!V26)*'Verwaltung (ausblenden)'!$C$17 -> 24.4 | W29: =(Interface!$D$22+(Interface!$D$17-Interface!$D$22)*Berechnung!W26)*'Verwaltung (ausblenden)'!$C$17 -> 24.6 | X29: =(Interface!$D$22+(Interface!$D$17-Interface!$D$22)*Berechnung!X26)*'Verwaltung (ausblenden)'!$C$17 -> 24.8 | Y29: =(Interface!$D$22+(Interface!$D$17-Interface!$D$22)*Berechnung!Y26)*'Verwaltung (ausblenden)'!$C$17 -> 25.1 | Z29: =(Interface!$D$22+(Interface!$D$17-Interface!$D$22)*Berechnung!Z26)*'Verwaltung (ausblenden)'!$C$17 -> 25.3 | AA29: =(Interface!$D$22+(Interface!$D$17-Interface!$D$22)*Berechnung!AA26)*'Verwaltung (ausblenden)'!$C$17 -> 25.5 | AB29: =(Interface!$D$22+(Interface!$D$17-Interface!$D$22)*Berechnung!AB26)*'Verwaltung (ausblenden)'!$C$17 -> 25.7 | AC29: =(Interface!$D$22+(Interface!$D$17-Interface!$D$22)*Berechnung!AC26)*'Verwaltung (ausblenden)'!$C$17 -> 25.9 | AD29: =(Interface!$D$22+(Interface!$D$17-Interface!$D$22)*Berechnung!AD26)*'Verwaltung (ausblenden)'!$C$17 -> 26.1 | AE29: =(Interface!$D$22+(Interface!$D$17-Interface!$D$22)*Berechnung!AE26)*'Verwaltung (ausblenden)'!$C$17 -> 26.3 | AF29: =(Interface!$D$22+(Interface!$D$17-Interface!$D$22)*Berechnung!AF26)*'Verwaltung (ausblenden)'!$C$17 -> 26.5 | AG29: =(Interface!$D$22+(Interface!$D$17-Interface!$D$22)*Berechnung!AG26)*'Verwaltung (ausblenden)'!$C$17 -> 26.7 | AH29: =(Interface!$D$22+(Interface!$D$17-Interface!$D$22)*Berechnung!AH26)*'Verwaltung (ausblenden)'!$C$17 -> 26.9 | AI29: =(Interface!$D$22+(Interface!$D$17-Interface!$D$22)*Berechnung!AI26)*'Verwaltung (ausblenden)'!$C$17 -> 27.1 | AJ29: =(Interface!$D$22+(Interface!$D$17-Interface!$D$22)*Berechnung!AJ26)*'Verwaltung (ausblenden)'!$C$17 -> 27.3 | AK29: =(Interface!$D$22+(Interface!$D$17-Interface!$D$22)*Berechnung!AK26)*'Verwaltung (ausblenden)'!$C$17 -> 27.5 | AL29: =(Interface!$D$22+(Interface!$D$17-Interface!$D$22)*Berechnung!AL26)*'Verwaltung (ausblenden)'!$C$17 -> 27.7 | AM29: =(Interface!$D$22+(Interface!$D$17-Interface!$D$22)*Berechnung!AM26)*'Verwaltung (ausblenden)'!$C$17 -> 27.9 | AN29: =(Interface!$D$22+(Interface!$D$17-Interface!$D$22)*Berechnung!AN26)*'Verwaltung (ausblenden)'!$C$17 -> 28.1 | AO29: =(Interface!$D$22+(Interface!$D$17-Interface!$D$22)*Berechnung!AO26)*'Verwaltung (ausblenden)'!$C$17 -> 28.3 | AP29: =(Interface!$D$22+(Interface!$D$17-Interface!$D$22)*Berechnung!AP26)*'Verwaltung (ausblenden)'!$C$17 -> 28.5 | AQ29: =(Interface!$D$22+(Interface!$D$17-Interface!$D$22)*Berechnung!AQ26)*'Verwaltung (ausblenden)'!$C$17 -> 28.6 | AR29: =(Interface!$D$22+(Interface!$D$17-Interface!$D$22)*Berechnung!AR26)*'Verwaltung (ausblenden)'!$C$17 -> 28.8 | AS29: =(Interface!$D$22+(Interface!$D$17-Interface!$D$22)*Berechnung!AS26)*'Verwaltung (ausblenden)'!$C$17 -> 29.0 | AT29: =(Interface!$D$22+(Interface!$D$17-Interface!$D$22)*Berechnung!AT26)*'Verwaltung (ausblenden)'!$C$17 -> 29.2 | AU29: =(Interface!$D$22+(Interface!$D$17-Interface!$D$22)*Berechnung!AU26)*'Verwaltung (ausblenden)'!$C$17 -> 29.3 | AV29: =(Interface!$D$22+(Interface!$D$17-Interface!$D$22)*Berechnung!AV26)*'Verwaltung (ausblenden)'!$C$17 -> 29.5 | AW29: =(Interface!$D$22+(Interface!$D$17-Interface!$D$22)*Berechnung!AW26)*'Verwaltung (ausblenden)'!$C$17 -> 29.7 | AX29: =(Interface!$D$22+(Interface!$D$17-Interface!$D$22)*Berechnung!AX26)*'Verwaltung (ausblenden)'!$C$17 -> 29.8 | AY29: =(Interface!$D$22+(Interface!$D$17-Interface!$D$22)*Berechnung!AY26)*'Verwaltung (ausblenden)'!$C$17 -> 30.0 | AZ29: =(Interface!$D$22+(Interface!$D$17-Interface!$D$22)*Berechnung!AZ26)*'Verwaltung (ausblenden)'!$C$17 -> 30.1 | BA29: =(Interface!$D$22+(Interface!$D$17-Interface!$D$22)*Berechnung!BA26)*'Verwaltung (ausblenden)'!$C$17 -> 30.3 | BB29: =(Interface!$D$22+(Interface!$D$17-Interface!$D$22)*Berechnung!BB26)*'Verwaltung (ausblenden)'!$C$17 -> 30.4 | BC29: =(Interface!$D$22+(Interface!$D$17-Interface!$D$22)*Berechnung!BC26)*'Verwaltung (ausblenden)'!$C$17 -> 30.6 | BD29: =(Interface!$D$22+(Interface!$D$17-Interface!$D$22)*Berechnung!BD26)*'Verwaltung (ausblenden)'!$C$17 -> 30.7 | BE29: =(Interface!$D$22+(Interface!$D$17-Interface!$D$22)*Berechnung!BE26)*'Verwaltung (ausblenden)'!$C$17 -> 30.9 | BF29: =(Interface!$D$22+(Interface!$D$17-Interface!$D$22)*Berechnung!BF26)*'Verwaltung (ausblenden)'!$C$17 -> 31.0 | BG29: =(Interface!$D$22+(Interface!$D$17-Interface!$D$22)*Berechnung!BG26)*'Verwaltung (ausblenden)'!$C$17 -> 31.2 | BH29: =(Interface!$D$22+(Interface!$D$17-Interface!$D$22)*Berechnung!BH26)*'Verwaltung (ausblenden)'!$C$17 -> 31.3 | BI29: =(Interface!$D$22+(Interface!$D$17-Interface!$D$22)*Berechnung!BI26)*'Verwaltung (ausblenden)'!$C$17 -> 31.5 | BJ29: =(Interface!$D$22+(Interface!$D$17-Interface!$D$22)*Berechnung!BJ26)*'Verwaltung (ausblenden)'!$C$17 -> 31.6 | BK29: =(Interface!$D$22+(Interface!$D$17-Interface!$D$22)*Berechnung!BK26)*'Verwaltung (ausblenden)'!$C$17 -> 31.7 | BL29: =(Interface!$D$22+(Interface!$D$17-Interface!$D$22)*Berechnung!BL26)*'Verwaltung (ausblenden)'!$C$17 -> 31.9 | BM29: =(Interface!$D$22+(Interface!$D$17-Interface!$D$22)*Berechnung!BM26)*'Verwaltung (ausblenden)'!$C$17 -> 32.0 | BN29: =(Interface!$D$22+(Interface!$D$17-Interface!$D$22)*Berechnung!BN26)*'Verwaltung (ausblenden)'!$C$17 -> 32.1 | BO29: =(Interface!$D$22+(Interface!$D$17-Interface!$D$22)*Berechnung!BO26)*'Verwaltung (ausblenden)'!$C$17 -> 32.3 | BP29: =(Interface!$D$22+(Interface!$D$17-Interface!$D$22)*Berechnung!BP26)*'Verwaltung (ausblenden)'!$C$17 -> 32.4 | BQ29: =(Interface!$D$22+(Interface!$D$17-Interface!$D$22)*Berechnung!BQ26)*'Verwaltung (ausblenden)'!$C$17 -> 32.5 | BR29: =(Interface!$D$22+(Interface!$D$17-Interface!$D$22)*Berechnung!BR26)*'Verwaltung (ausblenden)'!$C$17 -> 32.7 | BS29: =(Interface!$D$22+(Interface!$D$17-Interface!$D$22)*Berechnung!BS26)*'Verwaltung (ausblenden)'!$C$17 -> 32.8 | BT29: =(Interface!$D$22+(Interface!$D$17-Interface!$D$22)*Berechnung!BT26)*'Verwaltung (ausblenden)'!$C$17 -> 32.9 | BU29: =(Interface!$D$22+(Interface!$D$17-Interface!$D$22)*Berechnung!BU26)*'Verwaltung (ausblenden)'!$C$17 -> 33.0 | BV29: =(Interface!$D$22+(Interface!$D$17-Interface!$D$22)*Berechnung!BV26)*'Verwaltung (ausblenden)'!$C$17 -> 33.1 | BW29: =(Interface!$D$22+(Interface!$D$17-Interface!$D$22)*Berechnung!BW26)*'Verwaltung (ausblenden)'!$C$17 -> 33.3 | BX29: =(Interface!$D$22+(Interface!$D$17-Interface!$D$22)*Berechnung!BX26)*'Verwaltung (ausblenden)'!$C$17 -> 33.4 | BY29: =(Interface!$D$22+(Interface!$D$17-Interface!$D$22)*Berechnung!BY26)*'Verwaltung (ausblenden)'!$C$17 -> 33.5 | BZ29: =(Interface!$D$22+(Interface!$D$17-Interface!$D$22)*Berechnung!BZ26)*'Verwaltung (ausblenden)'!$C$17 -> 33.6 | CA29: =(Interface!$D$22+(Interface!$D$17-Interface!$D$22)*Berechnung!CA26)*'Verwaltung (ausblenden)'!$C$17 -> 33.7 | CB29: =(Interface!$D$22+(Interface!$D$17-Interface!$D$22)*Berechnung!CB26)*'Verwaltung (ausblenden)'!$C$17 -> 33.8 | CC29: =(Interface!$D$22+(Interface!$D$17-Interface!$D$22)*Berechnung!CC26)*'Verwaltung (ausblenden)'!$C$17 -> 33.9 | CD29: =(Interface!$D$22+(Interface!$D$17-Interface!$D$22)*Berechnung!CD26)*'Verwaltung (ausblenden)'!$C$17 -> 34.1 | CE29: =(Interface!$D$22+(Interface!$D$17-Interface!$D$22)*Berechnung!CE26)*'Verwaltung (ausblenden)'!$C$17 -> 34.2 | CF29: =(Interface!$D$22+(Interface!$D$17-Interface!$D$22)*Berechnung!CF26)*'Verwaltung (ausblenden)'!$C$17 -> 34.3 | CG29: =(Interface!$D$22+(Interface!$D$17-Interface!$D$22)*Berechnung!CG26)*'Verwaltung (ausblenden)'!$C$17 -> 34.4 | CH29: =(Interface!$D$22+(Interface!$D$17-Interface!$D$22)*Berechnung!CH26)*'Verwaltung (ausblenden)'!$C$17 -> 34.5 | CI29: =(Interface!$D$22+(Interface!$D$17-Interface!$D$22)*Berechnung!CI26)*'Verwaltung (ausblenden)'!$C$17 -> 34.6 | CJ29: =(Interface!$D$22+(Interface!$D$17-Interface!$D$22)*Berechnung!CJ26)*'Verwaltung (ausblenden)'!$C$17 -> 34.7 | CK29: =(Interface!$D$22+(Interface!$D$17-Interface!$D$22)*Berechnung!CK26)*'Verwaltung (ausblenden)'!$C$17 -> 34.8 | CL29: =(Interface!$D$22+(Interface!$D$17-Interface!$D$22)*Berechnung!CL26)*'Verwaltung (ausblenden)'!$C$17 -> 34.9 | CM29: =(Interface!$D$22+(Interface!$D$17-Interface!$D$22)*Berechnung!CM26)*'Verwaltung (ausblenden)'!$C$17 -> 35.0 | CN29: =(Interface!$D$22+(Interface!$D$17-Interface!$D$22)*Berechnung!CN26)*'Verwaltung (ausblenden)'!$C$17 -> 35.1 | CO29: =(Interface!$D$22+(Interface!$D$17-Interface!$D$22)*Berechnung!CO26)*'Verwaltung (ausblenden)'!$C$17 -> 35.2 | CP29: =(Interface!$D$22+(Interface!$D$17-Interface!$D$22)*Berechnung!CP26)*'Verwaltung (ausblenden)'!$C$17 -> 35.2 | CQ29: =(Interface!$D$22+(Interface!$D$17-Interface!$D$22)*Berechnung!CQ26)*'Verwaltung (ausblenden)'!$C$17 -> 35.3 | CR29: =(Interface!$D$22+(Interface!$D$17-Interface!$D$22)*Berechnung!CR26)*'Verwaltung (ausblenden)'!$C$17 -> 35.4 | CS29: =(Interface!$D$22+(Interface!$D$17-Interface!$D$22)*Berechnung!CS26)*'Verwaltung (ausblenden)'!$C$17 -> 35.5 | CT29: =(Interface!$D$22+(Interface!$D$17-Interface!$D$22)*Berechnung!CT26)*'Verwaltung (ausblenden)'!$C$17 -> 35.6 | CU29: =(Interface!$D$22+(Interface!$D$17-Interface!$D$22)*Berechnung!CU26)*'Verwaltung (ausblenden)'!$C$17 -> 35.7 | CV29: =(Interface!$D$22+(Interface!$D$17-Interface!$D$22)*Berechnung!CV26)*'Verwaltung (ausblenden)'!$C$17 -> 35.8 | CW29: =(Interface!$D$22+(Interface!$D$17-Interface!$D$22)*Berechnung!CW26)*'Verwaltung (ausblenden)'!$C$17 -> 35.9 | CX29: =(Interface!$D$22+(Interface!$D$17-Interface!$D$22)*Berechnung!CX26)*'Verwaltung (ausblenden)'!$C$17 -> 35.9 | CY29: =(Interface!$D$22+(Interface!$D$17-Interface!$D$22)*Berechnung!CY26)*'Verwaltung (ausblenden)'!$C$17 -> 36.0 | CZ29: =(Interface!$D$22+(Interface!$D$17-Interface!$D$22)*Berechnung!CZ26)*'Verwaltung (ausblenden)'!$C$17 -> 36.1 | DA29: =(Interface!$D$22+(Interface!$D$17-Interface!$D$22)*Berechnung!DA26)*'Verwaltung (ausblenden)'!$C$17 -> 36.2
B32: Ergebnisse für Ausgabe
B34: Austrittstemperatur warm in °C | C34: ϑ1,aus | D34: [°C] | E34: =MIN(E28:DA28) -> 52.9
B35: Austrittstemperatur kalt in °C | C35: ϑ2,aus | D35: [°C] | E35: =MAX(E29:DA29) -> 36.2
B37: Übertragene Wärmeleistung | D37: [W] | E37: =ABS((E28-Berechnung!E34)*Berechnung!E11) -> 13548.1
D38: [kW] | E38: =E37/1000 -> 13.5
D39: [MW] | E39: =E37/1000000 -> 0.0
B42: Zusätzliche Berechnungen
B44: Temperaturdifferenz bei x=0% | C44: ΔT(x=0%) | D44: [K] | E44: =IF('Verwaltung (ausblenden)'!$D$10=TRUE,Interface!D17-Interface!D22,IF('Verwaltung (ausblenden)'!$D$11=TRUE,Interface!D17-Interface!J8,0)) -> 60.0
B45: Temperaturdifferenz bei x=100% | C45: ΔT(x=100%) | D45: [K] | E45: =IF('Verwaltung (ausblenden)'!$D$10=TRUE,Interface!J7-Interface!J8,IF('Verwaltung (ausblenden)'!$D$11=TRUE,ABS(Interface!J7-Interface!D22),0)) -> 16.7
B47: Mittlere logarithmische Temperaturdifferenz | C47: ΔTm | D47: [K] | E47: =IF(E44-E45=0,(E44+E45)/2,(E44-E45)/LN(E44/E45)) -> 33.9
B49: Wärmeübertrager-Wirkungsgrad warmes Fluid | C49: ε1 | D49: [-] | E49: =IF('Verwaltung (ausblenden)'!$D$10=TRUE,(1-EXP(-$E$14*(1+$E$17)))/(1+$E$17),IF('Verwaltung (ausblenden)'!$D$11=TRUE,(1-EXP(-$E$14*(1-$E$17)))/(1-$E$17*EXP(-$E$14*(1-$E$17))),0)) -> 0.5
B50: Wärmeübertrager-Wirkungsgrad kaltes Fluid | C50: ε2 | D50: [-] | E50: =IF('Verwaltung (ausblenden)'!$D$10=TRUE,(1-EXP(-$E$15*(1+$E$18)))/(1+$E$18),IF('Verwaltung (ausblenden)'!$D$11=TRUE,(1-EXP(-$E$15*(1-$E$18)))/(1-$E$18*EXP(-$E$15*(1-$E$18))),0)) -> 0.3

Sheet Verwaltung (ausblenden) (hidden)
B2: HExTemp light
B4: Verwaltung
B6: Drop-Down-Menü
B8: Auswertung und Beschriftung im Eingabebereich
B10: Auswahl Gleichstromwärmeübertrager | C10: Gleichstrom | D10: =IF('Verwaltung (ausblenden)'!D12=2,FALSE,TRUE) -> TRUE | E10: entspricht im Drop-Down-Menü der Auswahl 1
B11: Auswahl Gegenstromwärmeübertrager | C11: Gegenstrom | D11: =IF('Verwaltung (ausblenden)'!D12=1,FALSE,TRUE) -> FALSE | E11: entspricht im Drop-Down-Menü der Auswahl 2
B12: Nummer des ausgewählten Strömungsverlaufes | D12: 1 | E12: Aktuelle Auswahl
B15: Fehlermanagement
B17: Bedingung zur "Ausblendung" der Daten im Plot bei Eingabefehlern | C17: =PRODUCT('Verwaltung (ausblenden)'!D21:D22) -> 1 | E17: 0: Eingabefehler 1: kein Eingabefehler
B20: Fehlermeldungen | C20: Nr. | D20: Trigger | E20: Meldung
C21: 1 | D21: =IF(Interface!D17<=Interface!D22,0,1) -> 1 | E21: Bitte wählen Sie Eingangstemperatur 1 größer als Eingangstemperatur 2!

Sheet Impressum
B2: Impressum
B4: HExTemp light Version 2.0.1 - 08.08.2017
B6: Lizenzbedingungen
B8: Diese Lizenzbedingungen bilden zwischen dem Anwender (entweder als natürliche oder juristische Person) und der Wenger Engineering GmbH einen rechtsgültigen Vertrag auf das vorliegende Softwareprodukt. Durch den Download und die Benutzung des Programmes erklären Sie Ihr Einverständnis mit diesen Lizenzbedingungen:
B10: 1. Die kostenfreie oder kostenpflichtige Verbreitung der Software ist nicht gestattet. Jede Zuwiderhandlung wird juristisch verfolgt.
B12: 2. Das Entfernen oder Bearbeiten des Logos in den Darstellungen ist nicht gestattet.
B14: 3. Die Wenger Engineering GmbH übernimmt keine Verantwortung für Änderungen und Eingaben durch den Anwender. Der Anwender ist dafür verantwortlich, physikalisch sinnvolle Eingaben zu tätigen und die Berechnungsergebnisse auf ihre Plausibilität hin zu prüfen.
B16: 4. Es werden Ihnen durch diesen Vertrag keine Rechte in Verbindung mit Marken der Wenger Engineering GmbH gewährt.
B18: 5. Es gelten die Allgemeinen Geschäftsbedingungen der Wenger Engineering GmbH.
B20: Urheberrecht
B22: Die Wenger Engineering GmbH hat und behält das Eigentum sowie alle Rechte (insb. die geistigen Eigentumsrechte) an der Software (einschließlich, aber nicht beschränkt auf Bilder, Berechnungsgleichungen, Texte und "Applets", die in dem Programm enthalten sind), den Begleitmaterialien und jeder Kopie der Software.
B24: Systemanforderungen
B26: Dieses Programm wurde für Windows 7 64 bit mit Excel 2013 entwickelt und optimiert. Die Wenger Engineering GmbH garantiert keine Funktionalität in anderen Betriebssystemen und MS Excel-Versionen.
B28: Keine Gewährleistung
B30: FÜR DIESE SOFTWARE IST DIE GEWÄHRLEISTUNG AUSGESCHLOSSEN. DIE BENUTZUNG ERFOLGT AUF EIGENE GEFAHR. FÜR VERLUSTE, FEHLERHAFTE DATEN, JEDWEDEN ENTGANGENEN GEWINN AUS DER NUTZUNG ODER DER UNKORREKTEN NUTZUNG DIESER SOFTWARE HAFTET DIE WENGER ENGINEERING GMBH NICHT.
B32: Fehler
B34: Wir haben diese Software mit größtmöglicher Sorgfalt erstellt. Dennoch können Fehler nicht ausgeschlossen werden. Sollten Sie Fehler finden, bitten wir Sie höflich um Rückmeldung.
B36: Kontakt
B38: Wenger Engineering GmbH
B39: Einsteinstraße 55
B40: D-89077 Ulm
B41: Tel. +49 731 / 159 37 -500
B43: mail@wenger-engineering.de
B44: www.wenger-engineering.de
